Workbook

Sheet Instructions and Notes
A1: The Secret Cocktail CNA School Operating Budget Insructions and Notes | Q1: Set Branding
A2: The document has been built to help you prepare detailed projections for your first three years of your school's operation. It consists of 5 different sheets (tabs along the bottom of the application window). You should work your way from right to left. This document contains sample data for enrollment projections, variable costs, and fixed costs.You should replace the data with your own values to get the most accurate projections. This document is locked to prevent breakage of the formulas. Cells that are editable are highlighted in Yellow. If you need to edit cells that are locked you can unlock the document by selecting "Unprotect Sheet" under the review tab on the menu ribbon while on the sheet you wish to edit, but be aware that this could break the formulas, and should only be attempted by those skilled in Excel. It is important to note that enrollment is not expected to start at capacity for the classroom space, but rather gradually increase to capacity in year one. Because of this you will see the enrollmet projections start off lower and increase over time. Often this will lead to a deficit in the first 3 months (approximatley depending on the structure of your program schedule). This is generally considered a start up cost. There is a box at the bottom of the year one tab to calculate the deficit you can expect to need to cover. It is highly unlikly you will start off with classes at capacity so we reccomend you plan for this. If you find that your deficit extends further than 3 months we would reccomend reconsidering the amount you would like to charge for tuition. This sample data assumes 1 schedule offering with a capacity of 10 students. It lists a multitude of included supplies that you should zero out if you do not intend to offer them with your program. This document allows you to prepare projections for up to three course offerings. Your inputs for your costs will carry over from the first year to the following two. However, you should try to account for known price increases for future years to get accurate projections for years 2 and 3. For example rent increases that are built into your lease, or supply cost increases. You can simply type in the upadted values into the fields. For Hybrid Programs: Hybrid course may be conducted live over video conference or utelize pre-recorded lectures. For course offerings conducted live you can proceed with filling out the fields in the same way as in person courses. For classes that use a prerecorded option they will reduce the hours for instructor costs, but have an additional cost for the licensing fee. We reccomend you call The Secret Cocktail if you wish to use pre-recorded lectures, and we can assist with the formulat update. To customize the forms with your branding, use the block in the upper right corner of this sheet under "Set Branding". Input your company name into Q2, set the background color of Q3 to your brand color, and input the first year you intend to operate your school in Q4, then click the "Update Branding" button. Definitions: -Variable Costs: Expenses that are dependant upon the number of students who enroll in a schedule. For example scrub costs will increase with the more students who are enrolled during a giving time period. - Fixed Costs: Expenses that remain constant regardless of how many students are enrolled during a given period. For example rent will be the same cost whether you have 1 student or 10 enrolled in your class. -Deficit: An excess of expenses compared to income. This results in a negative balance that must be covered by something other than program income. -Student Attrition Rate: Students who start the course, but drop out and are due a refund. This document assumes a 10% student attrition rate. * Sample rent and utilities assume a 2000 sq ft space at $18 per ft per year and $2 per foot per year respectivly (Based on info from offices.net and the most recent CBECS, 2018, survery with overage included to estimate internet/telephone services). | P2: Company Name : | Q2: New School Name ®
P3: Main Color:
P4: First Year of Operation | Q4: 2023

Sheet Course Salary&Enrollment
A1: ='Instructions and Notes'!Q2 & " Course Enrollment and Salary Projections" -> New School Name ® Course Enrollment and Salary Projections
A3: Course Offering 1 Hours & Length | D3: Course Offering 2 Hours & Length | G3: Course Offering 3 Hours & Length | J3: Class/Lab Capacity
A4: Theory Hours | B4: 59 | D4: Theory Hours | E4: 0 | G4: Theory Hours | H4: 0 | L4: # of Instructors Needed per course
A5: Lab Hours | B5: 0 | D5: Lab Hours | E5: 0 | G5: Lab Hours | H5: 0 | J5: Max number of students per class insturctor | K5: 10 | L5: ='Worker Sheet for Salary Pro'!C3 -> 1
A6: Clinical Hours | B6: 16 | D6: Clinical Hours | E6: 0 | G6: Clinical Hours | H6: 0 | J6: Max number of students per clinical instructor | K6: 10 | L6: ='Worker Sheet for Salary Pro'!F3 -> 1
A7: Length of Course in Weeks | B7: 4 | D7: Length of Course in Weeks | E7: 5 | G7: Length of Course in Weeks | H7: 6 | J7: Max number of students that can enroll per course | K7: 10
B9: Instructor Costs | G9: Instructor Salaries (Annually) | L9: Enrollment Scenario
C10: Hourly Rate | D10: Montly Cost | E10: Annual Instructor Cost | H10: Course 1 | I10: Course 2 | J10: Course 3 | L10: High Enrollment
B11: Class/Lab Instructor | C11: 30 | D11: =E11/12 -> 1917.5 | E11: =SUM(H11:J11) -> 23010 | G11: Class/Lab Instructor | H11: =VLOOKUP('Worker Sheet for Salary Pro'!C3, 'Worker Sheet for Salary Pro'!A8:B11, 2, FALSE) -> 23010 | I11: =VLOOKUP('Worker Sheet for Salary Pro'!C3, 'Worker Sheet for Salary Pro'!A15:B18, 2, FALSE) -> 0 | J11: =VLOOKUP('Worker Sheet for Salary Pro'!C3, 'Worker Sheet for Salary Pro'!A22:B25, 2, FALSE) -> 0
B12: Clinical Instructor | C12: 30 | D12: =E12/12 -> 520 | E12: =SUM(H12:J12) -> 6240 | G12: Clinical Instructor | H12: =VLOOKUP('Worker Sheet for Salary Pro'!F3,'Worker Sheet for Salary Pro'!D8:E11, 2, FALSE) -> 6240 | I12: =VLOOKUP('Worker Sheet for Salary Pro'!F3,'Worker Sheet for Salary Pro'!D15:E19, 2, FALSE) -> 0 | J12: =VLOOKUP('Worker Sheet for Salary Pro'!F3,'Worker Sheet for Salary Pro'!D22:E25, 2, FALSE) -> 0

Sheet Worker Sheet for Salary Pro (hidden)
B1: Classroom Instructor Requirement Ratio | E1: Clinical Instructor Requirement Ratio
B2: ratio | C2: # Instructor | E2: ratio | F2: # Instructor
B3: ='Course Salary&Enrollment'!K5/'Course Salary&Enrollment'!K7 -> 1 | C3: =IF(B3>=1,1,IF(B3>=0.5,2,IF(B3>=0.33,3,IF(B3>=0.25,4)))) -> 1 | E3: ='Course Salary&Enrollment'!K6/'Course Salary&Enrollment'!K7 -> 1 | F3: =IF(E3>=1,1,IF(E3>=0.5,2,IF(E3>=0.33,3,IF(E3>=0.25,4)))) -> 1
A6: Formula lookup for Class Instructor Course 1 | D6: Formula lookup for Clinical Instructor Course 1
A7: # Instructors | B7: Annual Cost | D7: # Instructors | E7: Annual Cost
A8: 1 | B8: =(52/'Course Salary&Enrollment'!B7)*('Course Salary&Enrollment'!C11*('Course Salary&Enrollment'!B4 +'Course Salary&Enrollment'!B5)) -> 23010 | D8: 1 | E8: =(52/'Course Salary&Enrollment'!B7)*('Course Salary&Enrollment'!C12*'Course Salary&Enrollment'!B6) -> 6240
A9: 2 | B9: =2*B8 -> 46020 | D9: 2 | E9: =2*E8 -> 12480
A10: 3 | B10: =3*B8 -> 69030 | D10: 3 | E10: =3*E8 -> 18720
A11: 4 | B11: =4*B8 -> 92040 | D11: 4 | E11: =4*E8 -> 24960
A13: Formula lookup for Class Instructor Course 2 | D13: Formula lookup for Clinical Instructor Course 2
A14: # Instructors | B14: Annual Cost | D14: # Instructors | E14: Annual Cost
A15: 1 | B15: =(52/'Course Salary&Enrollment'!E7)*('Course Salary&Enrollment'!C11*('Course Salary&Enrollment'!E4 +'Course Salary&Enrollment'!E5)) -> 0 | D15: 1 | E15: =(52/'Course Salary&Enrollment'!E7)*('Course Salary&Enrollment'!C12*'Course Salary&Enrollment'!E6) -> 0
A16: 2 | B16: =2*B15 -> 0 | D16: 2 | E16: =2*E15 -> 0
A17: 3 | B17: =3*B15 -> 0 | D17: 3 | E17: =3*E15 -> 0
A18: 4 | B18: =4*B15 -> 0 | D18: 4 | E18: =4*E15 -> 0
A20: Formula lookup for Class Instructor Course 3 | D20: Formula lookup for Clinical Instructor Course 3
A21: # Instructors | B21: Annual Cost | D21: # Instructors | E21: Annual Cost
A22: 1 | B22: =(52/'Course Salary&Enrollment'!H7)*('Course Salary&Enrollment'!C11*('Course Salary&Enrollment'!H4+'Course Salary&Enrollment'!H5)) -> 0 | D22: 1 | E22: =(52/'Course Salary&Enrollment'!H7)*('Course Salary&Enrollment'!C12*'Course Salary&Enrollment'!H6) -> 0
A23: 2 | B23: =2*B22 -> 0 | D23: 2 | E23: =2*E22 -> 0
A24: 3 | B24: =3*B22 -> 0 | D24: 3 | E24: =3*E22 -> 0
A25: 4 | B25: =4*B22 -> 0 | D25: 4 | E25: =4*E22 -> 0

Sheet Worker Sheet for Enrollment Pro (hidden)
A1: First Year
B2: 1 | C2: 2 | D2: 3 | E2: 4 | F2: 5 | G2: 6 | H2: 7 | I2: 8
A3: Jan | B3: =SUM(M4:M7) -> 17 | C3: =M4+M5 -> 5 | D3: =M4+M5 -> 5 | E3: =M4 -> 2 | F3: =M4 -> 2 | G3: =M4 -> 2 | H3: =M4 -> 2 | I3: =M4 -> 2 | L3: Growth Values
A4: Feb | B4: =SUM(M8:M11) -> 38 | C4: =M6+M7 -> 12 | D4: =M6 -> 5 | E4: =M5 -> 3 | F4: =M5 -> 3 | G4: =M5 -> 3 | H4: =M5 -> 3 | I4: 0 | L4: =IF('Course Salary&Enrollment'!$L$10="High Enrollment",0.25,0.1) -> 0.25 | M4: =ROUNDDOWN(L4*'Course Salary&Enrollment'!$K$7,0) -> 2
A5: Mar | B5: =SUM(M12:M15) -> 40 | C5: =M8+M9 -> 18 | D5: =M7 -> 7 | E5: =M6 -> 5 | F5: =M6 -> 5 | G5: =0 -> 0 | H5: =0 -> 0 | I5: =M5 -> 3 | L5: =IF('Course Salary&Enrollment'!$L$10="High Enrollment",0.35,0.15) -> 0.35 | M5: =ROUNDDOWN(L5*'Course Salary&Enrollment'!$K$7,0) -> 3
A6: Apr | B6: =SUM(M16:M17)+(2*'Course Salary&Enrollment'!$K$7) -> 40 | C6: =M10+M11 -> 20 | D6: =M8+M9 -> 18 | E6: =M7 -> 7 | F6: =M7 -> 7 | G6: =M6 -> 5 | H6: =M6 -> 5 | I6: 0 | L6: =IF('Course Salary&Enrollment'!$L$10="High Enrollment",0.5,0.2) -> 0.5 | M6: =ROUNDDOWN(L6*'Course Salary&Enrollment'!$K$7,0) -> 5
A7: May | B7: =4*'Course Salary&Enrollment'!$K$7 -> 40 | C7: =M12+M13 -> 20 | D7: =M10 -> 10 | E7: =M8 -> 8 | F7: 0 | G7: =M7 -> 7 | H7: 0 | I7: =M6 -> 5 | L7: =IF('Course Salary&Enrollment'!$L$10="High Enrollment",0.75,0.25) -> 0.75 | M7: =ROUNDDOWN(L7*'Course Salary&Enrollment'!$K$7,0) -> 7
A8: Jun | B8: =4*'Course Salary&Enrollment'!$K$7 -> 40 | C8: =M14+M15 -> 20 | D8: =M11 -> 10 | E8: =M9 -> 10 | F8: =M8 -> 8 | G8: 0 | H8: =M7 -> 7 | I8: 0 | L8: =IF('Course Salary&Enrollment'!$L$10="High Enrollment",0.85,0.3) -> 0.85 | M8: =ROUNDDOWN(L8*'Course Salary&Enrollment'!$K$7,0) -> 8
A9: Jul | B9: =4*'Course Salary&Enrollment'!$K$7 -> 40 | C9: =M16+M17 -> 20 | D9: =M12+M13 -> 20 | E9: 10 | F9: =M9 -> 10 | G9: =M8 -> 8 | H9: 0 | I9: =M7 -> 7 | L9: =IF('Course Salary&Enrollment'!$L$10="High Enrollment",1,0.35) -> 1 | M9: =ROUNDDOWN(L9*'Course Salary&Enrollment'!$K$7,0) -> 10
A10: Aug | B10: =4*'Course Salary&Enrollment'!$K$7 -> 40 | C10: =2*'Course Salary&Enrollment'!$K$7 -> 20 | D10: =M14+M15 -> 20 | E10: 10 | F10: =M10 -> 10 | G10: =M9 -> 10 | H10: =M8 -> 8 | I10: 0 | L10: =IF('Course Salary&Enrollment'!$L$10="High Enrollment",1,0.4) -> 1 | M10: =ROUNDDOWN(L10*'Course Salary&Enrollment'!$K$7,0) -> 10
A11: Sep | B11: =4*'Course Salary&Enrollment'!$K$7 -> 40 | C11: =2*'Course Salary&Enrollment'!$K$7 -> 20 | D11: =M16+M17 -> 20 | E11: 10 | F11: =M11 -> 10 | G11: 0 | H11: =M9 -> 10 | I11: =M8 -> 8 | L11: =IF('Course Salary&Enrollment'!$L$10="High Enrollment",1,0.45) -> 1 | M11: =ROUNDDOWN(L11*'Course Salary&Enrollment'!$K$7,0) -> 10
A12: Oct | B12: =4*'Course Salary&Enrollment'!$K$7 -> 40 | C12: =2*'Course Salary&Enrollment'!$K$7 -> 20 | D12: =2*'Course Salary&Enrollment'!$K$7 -> 20 | E12: 10 | F12: 0 | G12: =M10 -> 10 | H12: 0 | I12: 0 | L12: =IF('Course Salary&Enrollment'!$L$10="High Enrollment",1,0.5) -> 1 | M12: =ROUNDDOWN(L12*'Course Salary&Enrollment'!$K$7,0) -> 10
A13: Nov | B13: =4*'Course Salary&Enrollment'!$K$7 -> 40 | C13: =2*'Course Salary&Enrollment'!$K$7 -> 20 | D13: ='Course Salary&Enrollment'!$K$7 -> 10 | E13: =M14 -> 10 | F13: =M12 -> 10 | G13: =M11 -> 10 | H13: =M10 -> 10 | I13: =M9 -> 10 | L13: =IF('Course Salary&Enrollment'!$L$10="High Enrollment",1,0.6) -> 1 | M13: =ROUNDDOWN(L13*'Course Salary&Enrollment'!$K$7,0) -> 10
A14: Dec | B14: =4*'Course Salary&Enrollment'!$K$7 -> 40 | C14: =2*'Course Salary&Enrollment'!$K$7 -> 20 | D14: ='Course Salary&Enrollment'!$K$7 -> 10 | E14: =M15 -> 10 | F14: =M13 -> 10 | G14: 0 | H14: 0 | I14: 0 | L14: =IF('Course Salary&Enrollment'!$L$10="High Enrollment",1,0.7) -> 1 | M14: =ROUNDDOWN(L14*'Course Salary&Enrollment'!$K$7,0) -> 10
L15: =IF('Course Salary&Enrollment'!$L$10="High Enrollment",1,0.8) -> 1 | M15: =ROUNDDOWN(L15*'Course Salary&Enrollment'!$K$7,0) -> 10
L16: =IF('Course Salary&Enrollment'!$L$10="High Enrollment",1,0.9) -> 1 | M16: =ROUNDDOWN(L16*'Course Salary&Enrollment'!$K$7,0) -> 10
A17: 2nd Year | L17: 1 | M17: =ROUNDDOWN(L17*'Course Salary&Enrollment'!$K$7,0) -> 10
B18: 1 | C18: 2 | D18: 3 | E18: 4 | F18: 5 | G18: 6 | H18: 7 | I18: 8
A19: Jan | B19: =4*'Course Salary&Enrollment'!$K$7 -> 40 | C19: =2*'Course Salary&Enrollment'!$K$7 -> 20 | D19: =2*'Course Salary&Enrollment'!$K$7 -> 20 | E19: =M16 -> 10 | F19: =M14 -> 10 | G19: =M12 -> 10 | H19: =M11 -> 10 | I19: =M10 -> 10
A20: Feb | B20: =4*'Course Salary&Enrollment'!$K$7 -> 40 | C20: =2*'Course Salary&Enrollment'!$K$7 -> 20 | D20: ='Course Salary&Enrollment'!$K$7 -> 10 | E20: =M17 -> 10 | F20: =M15 -> 10 | G20: =M12 -> 10 | H20: =M12 -> 10 | I20: 0
A21: Mar | B21: =4*'Course Salary&Enrollment'!$K$7 -> 40 | C21: =2*'Course Salary&Enrollment'!$K$7 -> 20 | D21: ='Course Salary&Enrollment'!$K$7 -> 10 | E21: ='Course Salary&Enrollment'!$K$7 -> 10 | F21: =M16 -> 10 | G21: 0 | H21: 0 | I21: =M11 -> 10
A22: Apr | B22: =4*'Course Salary&Enrollment'!$K$7 -> 40 | C22: =2*'Course Salary&Enrollment'!$K$7 -> 20 | D22: =2*'Course Salary&Enrollment'!$K$7 -> 20 | E22: ='Course Salary&Enrollment'!$K$7 -> 10 | F22: =M17 -> 10 | G22: =M13 -> 10 | H22: =M13 -> 10 | I22: =M12 -> 10
A23: May | B23: =4*'Course Salary&Enrollment'!$K$7 -> 40 | C23: =2*'Course Salary&Enrollment'!$K$7 -> 20 | D23: ='Course Salary&Enrollment'!$K$7 -> 10 | E23: ='Course Salary&Enrollment'!$K$7 -> 10 | F23: 0 | G23: =M14 -> 10 | H23: 0 | I23: =M13 -> 10
A24: Jun | B24: =4*'Course Salary&Enrollment'!$K$7 -> 40 | C24: =2*'Course Salary&Enrollment'!$K$7 -> 20 | D24: ='Course Salary&Enrollment'!$K$7 -> 10 | E24: ='Course Salary&Enrollment'!$K$7 -> 10 | F24: ='Course Salary&Enrollment'!$K$7 -> 10 | G24: 0 | H24: =M14 -> 10 | I24: 0
A25: Jul | B25: =4*'Course Salary&Enrollment'!$K$7 -> 40 | C25: =2*'Course Salary&Enrollment'!$K$7 -> 20 | D25: =2*'Course Salary&Enrollment'!$K$7 -> 20 | E25: ='Course Salary&Enrollment'!$K$7 -> 10 | F25: ='Course Salary&Enrollment'!$K$7 -> 10 | G25: =M15 -> 10 | H25: 0 | I25: =M14 -> 10
A26: Aug | B26: =4*'Course Salary&Enrollment'!$K$7 -> 40 | C26: =2*'Course Salary&Enrollment'!$K$7 -> 20 | D26: ='Course Salary&Enrollment'!$K$7 -> 10 | E26: ='Course Salary&Enrollment'!$K$7 -> 10 | F26: ='Course Salary&Enrollment'!$K$7 -> 10 | G26: =M15 -> 10 | H26: =M15 -> 10 | I26: 0
A27: Sep | B27: =4*'Course Salary&Enrollment'!$K$7 -> 40 | C27: =2*'Course Salary&Enrollment'!$K$7 -> 20 | D27: ='Course Salary&Enrollment'!$K$7 -> 10 | E27: ='Course Salary&Enrollment'!$K$7 -> 10 | F27: ='Course Salary&Enrollment'!$K$7 -> 10 | G27: 0 | H27: =M16 -> 10 | I27: =M15 -> 10
A28: Oct | B28: =4*'Course Salary&Enrollment'!$K$7 -> 40 | C28: =2*'Course Salary&Enrollment'!$K$7 -> 20 | D28: =2*'Course Salary&Enrollment'!$K$7 -> 20 | E28: ='Course Salary&Enrollment'!$K$7 -> 10 | F28: 0 | G28: =M16 -> 10 | H28: 0 | I28: 0
A29: Nov | B29: =4*'Course Salary&Enrollment'!$K$7 -> 40 | C29: =2*'Course Salary&Enrollment'!$K$7 -> 20 | D29: ='Course Salary&Enrollment'!$K$7 -> 10 | E29: ='Course Salary&Enrollment'!$K$7 -> 10 | F29: ='Course Salary&Enrollment'!$K$7 -> 10 | G29: =M17 -> 10 | H29: =M17 -> 10 | I29: =M16 -> 10
A30: Dec | B30: =4*'Course Salary&Enrollment'!$K$7 -> 40 | C30: =2*'Course Salary&Enrollment'!$K$7 -> 20 | D30: ='Course Salary&Enrollment'!$K$7 -> 10 | E30: ='Course Salary&Enrollment'!$K$7 -> 10 | F30: ='Course Salary&Enrollment'!$K$7 -> 10 | G30: 0 | H30: 0 | I30: 0
A32: 3rd Year
B33: 1 | C33: 2 | D33: 3 | E33: 4 | F33: 5 | G33: 6 | H33: 7 | I33: 8
A34: Jan | B34: =4*'Course Salary&Enrollment'!$K$7 -> 40 | C34: =2*'Course Salary&Enrollment'!$K$7 -> 20 | D34: =2*'Course Salary&Enrollment'!$K$7 -> 20 | E34: ='Course Salary&Enrollment'!$K$7 -> 10 | F34: ='Course Salary&Enrollment'!$K$7 -> 10 | G34: ='Course Salary&Enrollment'!$K$7 -> 10 | H34: ='Course Salary&Enrollment'!$K$7 -> 10 | I34: =M17 -> 10
A35: Feb | B35: =4*'Course Salary&Enrollment'!$K$7 -> 40 | C35: =2*'Course Salary&Enrollment'!$K$7 -> 20 | D35: ='Course Salary&Enrollment'!$K$7 -> 10 | E35: ='Course Salary&Enrollment'!$K$7 -> 10 | F35: ='Course Salary&Enrollment'!$K$7 -> 10 | G35: ='Course Salary&Enrollment'!$K$7 -> 10 | H35: ='Course Salary&Enrollment'!$K$7 -> 10 | I35: 0
A36: Mar | B36: =4*'Course Salary&Enrollment'!$K$7 -> 40 | C36: =2*'Course Salary&Enrollment'!$K$7 -> 20 | D36: ='Course Salary&Enrollment'!$K$7 -> 10 | E36: ='Course Salary&Enrollment'!$K$7 -> 10 | F36: ='Course Salary&Enrollment'!$K$7 -> 10 | G36: 0 | H36: 0 | I36: ='Course Salary&Enrollment'!$K$7 -> 10
A37: Apr | B37: =4*'Course Salary&Enrollment'!$K$7 -> 40 | C37: =2*'Course Salary&Enrollment'!$K$7 -> 20 | D37: =2*'Course Salary&Enrollment'!$K$7 -> 20 | E37: ='Course Salary&Enrollment'!$K$7 -> 10 | F37: ='Course Salary&Enrollment'!$K$7 -> 10 | G37: ='Course Salary&Enrollment'!$K$7 -> 10 | H37: ='Course Salary&Enrollment'!$K$7 -> 10 | I37: 0
A38: May | B38: =4*'Course Salary&Enrollment'!$K$7 -> 40 | C38: =2*'Course Salary&Enrollment'!$K$7 -> 20 | D38: ='Course Salary&Enrollment'!$K$7 -> 10 | E38: ='Course Salary&Enrollment'!$K$7 -> 10 | F38: 0 | G38: ='Course Salary&Enrollment'!$K$7 -> 10 | H38: 0 | I38: ='Course Salary&Enrollment'!$K$7 -> 10
A39: Jun | B39: =4*'Course Salary&Enrollment'!$K$7 -> 40 | C39: =2*'Course Salary&Enrollment'!$K$7 -> 20 | D39: ='Course Salary&Enrollment'!$K$7 -> 10 | E39: ='Course Salary&Enrollment'!$K$7 -> 10 | F39: ='Course Salary&Enrollment'!$K$7 -> 10 | G39: 0 | H39: ='Course Salary&Enrollment'!$K$7 -> 10 | I39: 0
A40: Jul | B40: =4*'Course Salary&Enrollment'!$K$7 -> 40 | C40: =2*'Course Salary&Enrollment'!$K$7 -> 20 | D40: =2*'Course Salary&Enrollment'!$K$7 -> 20 | E40: ='Course Salary&Enrollment'!$K$7 -> 10 | F40: ='Course Salary&Enrollment'!$K$7 -> 10 | G40: ='Course Salary&Enrollment'!$K$7 -> 10 | H40: 0 | I40: ='Course Salary&Enrollment'!$K$7 -> 10
A41: Aug | B41: =4*'Course Salary&Enrollment'!$K$7 -> 40 | C41: =2*'Course Salary&Enrollment'!$K$7 -> 20 | D41: ='Course Salary&Enrollment'!$K$7 -> 10 | E41: ='Course Salary&Enrollment'!$K$7 -> 10 | F41: ='Course Salary&Enrollment'!$K$7 -> 10 | G41: ='Course Salary&Enrollment'!$K$7 -> 10 | H41: ='Course Salary&Enrollment'!$K$7 -> 10 | I41: 0
A42: Sep | B42: =4*'Course Salary&Enrollment'!$K$7 -> 40 | C42: =2*'Course Salary&Enrollment'!$K$7 -> 20 | D42: ='Course Salary&Enrollment'!$K$7 -> 10 | E42: ='Course Salary&Enrollment'!$K$7 -> 10 | F42: ='Course Salary&Enrollment'!$K$7 -> 10 | G42: 0 | H42: ='Course Salary&Enrollment'!$K$7 -> 10 | I42: ='Course Salary&Enrollment'!$K$7 -> 10
A43: Oct | B43: =4*'Course Salary&Enrollment'!$K$7 -> 40 | C43: =2*'Course Salary&Enrollment'!$K$7 -> 20 | D43: =2*'Course Salary&Enrollment'!$K$7 -> 20 | E43: ='Course Salary&Enrollment'!$K$7 -> 10 | F43: 0 | G43: ='Course Salary&Enrollment'!$K$7 -> 10 | H43: 0 | I43: 0
A44: Nov | B44: =4*'Course Salary&Enrollment'!$K$7 -> 40 | C44: =2*'Course Salary&Enrollment'!$K$7 -> 20 | D44: ='Course Salary&Enrollment'!$K$7 -> 10 | E44: ='Course Salary&Enrollment'!$K$7 -> 10 | F44: ='Course Salary&Enrollment'!$K$7 -> 10 | G44: ='Course Salary&Enrollment'!$K$7 -> 10 | H44: ='Course Salary&Enrollment'!$K$7 -> 10 | I44: ='Course Salary&Enrollment'!$K$7 -> 10
A45: Dec | B45: =4*'Course Salary&Enrollment'!$K$7 -> 40 | C45: =2*'Course Salary&Enrollment'!$K$7 -> 20 | D45: ='Course Salary&Enrollment'!$K$7 -> 10 | E45: ='Course Salary&Enrollment'!$K$7 -> 10 | F45: ='Course Salary&Enrollment'!$K$7 -> 10 | G45: 0 | H45: 0 | I45: 0

Sheet course dist across yr (hidden)
A1: Enrollment Projections (1 Week Program) | C1: course count | E1: Enrollment Projections (2 Week Program) | G1: course count | I1: Enrollment Projections (3 Week Program) | K1: course count | M1: Enrollment Projections (4 Week Program) | O1: course count | Q1: Enrollment Projections (5 Week Program) | S1: course count
A2: Jan | B2: =SUM(V3:V6) -> 17 | C2: 4 | E2: Jan | F2: =V3+V4 -> 5 | G2: 2 | I2: Jan | J2: =V3+V4 -> 5 | K2: 2 | M2: Jan | N2: =V3 -> 2 | O2: 1 | Q2: Jan | R2: =V3 -> 2 | S2: 1 | U2: Growth Values
A3: Feb | B3: =SUM(V7:V10) -> 31 | C3: 4 | E3: Feb | F3: =V5+V6 -> 12 | G3: 2 | I3: Feb | J3: =V5 -> 5 | K3: 1 | M3: Feb | N3: =V4 -> 3 | O3: 1 | Q3: Feb | R3: =V4 -> 3 | S3: 1 | U3: =IF('Course Salary&Enrollment'!$L$10="High Enrollment",0.25,0.1) -> 0.25 | V3: =ROUNDDOWN(U3*'Course Salary&Enrollment'!$K$7,0) -> 2
A4: Mar | B4: =SUM(V11:V12)+(2*'Course Salary&Enrollment'!$K$7) -> 40 | C4: 4 | E4: Mar | F4: =V7+V8 -> 11 | G4: 2 | I4: Mar | J4: =V6 -> 7 | K4: 1 | M4: Mar | N4: =V5 -> 5 | O4: 1 | Q4: Mar | R4: =V5 -> 5 | S4: 1 | U4: =IF('Course Salary&Enrollment'!$L$10="High Enrollment",0.35,0.15) -> 0.35 | V4: =ROUNDDOWN(U4*'Course Salary&Enrollment'!$K$7,0) -> 3
A5: Apr | B5: =4*'Course Salary&Enrollment'!$K$7 -> 40 | C5: 4 | E5: Apr | F5: =V9+V10 -> 20 | G5: 2 | I5: Apr | J5: =V7+V8 -> 11 | K5: 2 | M5: Apr | N5: =V6 -> 7 | O5: 1 | Q5: Apr | R5: =V6 -> 7 | S5: 1 | U5: =IF('Course Salary&Enrollment'!$L$10="High Enrollment",0.5,0.2) -> 0.5 | V5: =ROUNDDOWN(U5*'Course Salary&Enrollment'!$K$7,0) -> 5
A6: May | B6: =4*'Course Salary&Enrollment'!$K$7 -> 40 | C6: 4 | E6: May | F6: =V11+V12 -> 20 | G6: 2 | I6: May | J6: =V9 -> 10 | K6: 1 | M6: May | N6: =V7 -> 10 | O6: 1 | Q6: May | R6: 0 | S6: 0 | U6: =IF('Course Salary&Enrollment'!$L$10="High Enrollment",0.75,0.3) -> 0.75 | V6: =ROUNDDOWN(U6*'Course Salary&Enrollment'!$K$7,0) -> 7
A7: Jun | B7: =4*'Course Salary&Enrollment'!$K$7 -> 40 | C7: 4 | E7: Jun | F7: =2*'Course Salary&Enrollment'!$K$7 -> 20 | G7: 2 | I7: Jun | J7: =V10 -> 10 | K7: 1 | M7: Jun | N7: =V8 -> 1 | O7: 1 | Q7: Jun | R7: =V7 -> 10 | S7: 1 | U7: =IF('Course Salary&Enrollment'!$L$10="High Enrollment",1,0.4) -> 1 | V7: =ROUNDDOWN(U7*'Course Salary&Enrollment'!$K$7,0) -> 10
A8: Jul | B8: =4*'Course Salary&Enrollment'!$K$7 -> 40 | C8: 4 | E8: Jul | F8: =2*'Course Salary&Enrollment'!$K$7 -> 20 | G8: 2 | I8: Jul | J8: =V11+V12 -> 20 | K8: 2 | M8: Jul | N8: 10 | O8: 1 | Q8: Jul | R8: =V8 -> 1 | S8: 1 | U8: =IF('Course Salary&Enrollment'!$L$10="High Enrollment",0.1,0.5) -> 0.1 | V8: =ROUNDDOWN(U8*'Course Salary&Enrollment'!$K$7,0) -> 1
A9: Aug | B9: =4*'Course Salary&Enrollment'!$K$7 -> 40 | C9: 4 | E9: Aug | F9: =2*'Course Salary&Enrollment'!$K$7 -> 20 | G9: 2 | I9: Aug | J9: ='Course Salary&Enrollment'!$K$7 -> 10 | K9: 1 | M9: Aug | N9: 10 | O9: 1 | Q9: Aug | R9: =V9 -> 10 | S9: 1 | U9: =IF('Course Salary&Enrollment'!$L$10="High Enrollment",1,0.6) -> 1 | V9: =ROUNDDOWN(U9*'Course Salary&Enrollment'!$K$7,0) -> 10
A10: Sep | B10: =4*'Course Salary&Enrollment'!$K$7 -> 40 | C10: 4 | E10: Sep | F10: =2*'Course Salary&Enrollment'!$K$7 -> 20 | G10: 2 | I10: Sep | J10: ='Course Salary&Enrollment'!$K$7 -> 10 | K10: 1 | M10: Sep | N10: 10 | O10: 1 | Q10: Sep | R10: =V10 -> 10 | S10: 1 | U10: =IF('Course Salary&Enrollment'!$L$10="High Enrollment",1,0.7) -> 1 | V10: =ROUNDDOWN(U10*'Course Salary&Enrollment'!$K$7,0) -> 10
A11: Oct | B11: =4*'Course Salary&Enrollment'!$K$7 -> 40 | C11: 4 | E11: Oct | F11: =2*'Course Salary&Enrollment'!$K$7 -> 20 | G11: 2 | I11: Oct | J11: =2*'Course Salary&Enrollment'!$K$7 -> 20 | K11: 2 | M11: Oct | N11: 10 | O11: 1 | Q11: Oct | R11: 0 | S11: 0 | U11: =IF('Course Salary&Enrollment'!$L$10="High Enrollment",1,0.8) -> 1 | V11: =ROUNDDOWN(U11*'Course Salary&Enrollment'!$K$7,0) -> 10
A12: Nov | B12: =4*'Course Salary&Enrollment'!$K$7 -> 40 | C12: 4 | E12: Nov | F12: =2*'Course Salary&Enrollment'!$K$7 -> 20 | G12: 2 | I12: Nov | J12: ='Course Salary&Enrollment'!$K$7 -> 10 | K12: 1 | M12: Nov | N12: ='Course Salary&Enrollment'!$K$7 -> 10 | O12: 1 | Q12: Nov | R12: =V11 -> 10 | S12: 1 | U12: 1 | V12: =ROUNDDOWN(U12*'Course Salary&Enrollment'!$K$7,0) -> 10
A13: Dec | B13: =4*'Course Salary&Enrollment'!$K$7 -> 40 | C13: 4 | E13: Dec | F13: =2*'Course Salary&Enrollment'!$K$7 -> 20 | G13: 2 | I13: Dec | J13: ='Course Salary&Enrollment'!$K$7 -> 10 | K13: 1 | M13: Dec | N13: ='Course Salary&Enrollment'!$K$7 -> 10 | O13: 1 | Q13: Dec | R13: =V12 -> 10 | S13: 1
A16: Enrollment Projections (6 Week Program) | C16: course count | E16: Enrollment Projections (7 Week Program) | G16: course count | I16: Enrollment Projections (8 Week Program) | K16: course count
A17: Jan | B17: =V3 -> 2 | C17: 1 | E17: Jan | F17: =V3 -> 2 | G17: 1 | I17: Jan | J17: =V3 -> 2 | K17: 1
A18: Feb | B18: =V4 -> 3 | C18: 1 | E18: Feb | F18: =V4 -> 3 | G18: 1 | I18: Feb | J18: 0 | K18: 0
A19: Mar | B19: =0 -> 0 | C19: 0 | E19: Mar | F19: =0 -> 0 | G19: 0 | I19: Mar | J19: =V4 -> 3 | K19: 1
A20: Apr | B20: =V5 -> 5 | C20: 1 | E20: Apr | F20: =V5 -> 5 | G20: 1 | I20: Apr | J20: 0 | K20: 0
A21: May | B21: =V6 -> 7 | C21: 1 | E21: May | F21: 0 | G21: 0 | I21: May | J21: =V5 -> 5 | K21: 1
A22: Jun | B22: 0 | C22: 0 | E22: Jun | F22: =V6 -> 7 | G22: 1 | I22: Jun | J22: 0 | K22: 0
A23: Jul | B23: =V7 -> 10 | C23: 1 | E23: Jul | F23: 0 | G23: 0 | I23: Jul | J23: =V6 -> 7 | K23: 1
A24: Aug | B24: =V8 -> 1 | C24: 1 | E24: Aug | F24: =V7 -> 10 | G24: 1 | I24: Aug | J24: 0 | K24: 0
A25: Sep | B25: 0 | C25: 0 | E25: Sep | F25: =V8 -> 1 | G25: 1 | I25: Sep | J25: =V7 -> 10 | K25: 1
A26: Oct | B26: =V9 -> 10 | C26: 1 | E26: Oct | F26: 0 | G26: 0 | I26: Oct | J26: 0 | K26: 0
A27: Nov | B27: =V10 -> 10 | C27: 1 | E27: Nov | F27: =V9 -> 10 | G27: 1 | I27: Nov | J27: =V8 -> 1 | K27: 1
A28: Dec | B28: 0 | C28: 0 | E28: Dec | F28: 0 | G28: 0 | I28: Dec | J28: 0 | K28: 0

Sheet School YR 1
A1: ='Instructions and Notes'!Q2 & " " & 'Instructions and Notes'!Q4 & " Operating Budget" & CHAR(10) &"(First Year)" -> New School Name ® 2023 Operating Budget (First Year)
A2: Account Name | B2: Month 1 | C2: Month 2 | D2: Month 3 | E2: Month 4 | F2: Month 5 | G2: Month 6 | H2: Month 7 | I2: Month 8 | J2: Month 9 | K2: Month 10 | L2: Month 11 | M2: Month 12 | N2: Months 1-12
A3: Expected CNA Student Body (Course 1) *1 four week class | B3: =INDEX('Worker Sheet for Enrollment Pro'!B3:I3, 1,MATCH('Course Salary&Enrollment'!B7,'Worker Sheet for Enrollment Pro'!B2:I2,0)) -> 2 | C3: =INDEX('Worker Sheet for Enrollment Pro'!B4:I4, 1,MATCH('Course Salary&Enrollment'!B7,'Worker Sheet for Enrollment Pro'!B2:I2,0)) -> 3 | D3: =INDEX('Worker Sheet for Enrollment Pro'!B5:I5, 1,MATCH('Course Salary&Enrollment'!B7,'Worker Sheet for Enrollment Pro'!B2:I2,0)) -> 5 | E3: =INDEX('Worker Sheet for Enrollment Pro'!B6:I6, 1,MATCH('Course Salary&Enrollment'!B7,'Worker Sheet for Enrollment Pro'!B2:I2,0)) -> 7 | F3: =INDEX('Worker Sheet for Enrollment Pro'!B7:I7, 1,MATCH('Course Salary&Enrollment'!B7,'Worker Sheet for Enrollment Pro'!B2:I2,0)) -> 8 | G3: =INDEX('Worker Sheet for Enrollment Pro'!B8:I8, 1,MATCH('Course Salary&Enrollment'!B7,'Worker Sheet for Enrollment Pro'!B2:I2,0)) -> 10 | H3: =INDEX('Worker Sheet for Enrollment Pro'!B9:I9, 1,MATCH('Course Salary&Enrollment'!B7,'Worker Sheet for Enrollment Pro'!B2:I2,0)) -> 10 | I3: =INDEX('Worker Sheet for Enrollment Pro'!B10:I10, 1,MATCH('Course Salary&Enrollment'!B7,'Worker Sheet for Enrollment Pro'!B2:I2,0)) -> 10 | J3: =INDEX('Worker Sheet for Enrollment Pro'!B11:I11, 1,MATCH('Course Salary&Enrollment'!B7,'Worker Sheet for Enrollment Pro'!B2:I2,0)) -> 10 | K3: =INDEX('Worker Sheet for Enrollment Pro'!B12:I12, 1,MATCH('Course Salary&Enrollment'!B7,'Worker Sheet for Enrollment Pro'!B2:I2,0)) -> 10 | L3: =INDEX('Worker Sheet for Enrollment Pro'!B13:I13, 1,MATCH('Course Salary&Enrollment'!B7,'Worker Sheet for Enrollment Pro'!B2:I2,0)) -> 10 | M3: =INDEX('Worker Sheet for Enrollment Pro'!B14:I14, 1,MATCH('Course Salary&Enrollment'!B7,'Worker Sheet for Enrollment Pro'!B2:I2,0)) -> 10 | N3: =SUM(B3:M3) -> 95
A4: Expected CNA Student Body (Course 2) | B4: =IF('Course Salary&Enrollment'!E4+'Course Salary&Enrollment'!E5+'Course Salary&Enrollment'!E6 >0, INDEX('Worker Sheet for Enrollment Pro'!B3:I3, 1,MATCH('Course Salary&Enrollment'!E7,'Worker Sheet for Enrollment Pro'!B2:I2,0)),0) -> 0 | C4: =IF('Course Salary&Enrollment'!E4+'Course Salary&Enrollment'!E5+'Course Salary&Enrollment'!E6 >0, INDEX('Worker Sheet for Enrollment Pro'!B4:I4, 1,MATCH('Course Salary&Enrollment'!E7,'Worker Sheet for Enrollment Pro'!B2:I2,0)),0) -> 0 | D4: =IF('Course Salary&Enrollment'!E4+'Course Salary&Enrollment'!E5+'Course Salary&Enrollment'!E6 >0, INDEX('Worker Sheet for Enrollment Pro'!B5:I5, 1,MATCH('Course Salary&Enrollment'!E7,'Worker Sheet for Enrollment Pro'!B2:I2,0)),0) -> 0 | E4: =IF('Course Salary&Enrollment'!E4+'Course Salary&Enrollment'!E5+'Course Salary&Enrollment'!E6 >0, INDEX('Worker Sheet for Enrollment Pro'!B6:I6, 1,MATCH('Course Salary&Enrollment'!E7,'Worker Sheet for Enrollment Pro'!B2:I2,0)),0) -> 0 | F4: =IF('Course Salary&Enrollment'!E4+'Course Salary&Enrollment'!E5+'Course Salary&Enrollment'!E6 >0, INDEX('Worker Sheet for Enrollment Pro'!B7:I7, 1,MATCH('Course Salary&Enrollment'!E7,'Worker Sheet for Enrollment Pro'!B2:I2,0)),0) -> 0 | G4: =IF('Course Salary&Enrollment'!E4+'Course Salary&Enrollment'!E5+'Course Salary&Enrollment'!E6 >0, INDEX('Worker Sheet for Enrollment Pro'!B8:I8, 1,MATCH('Course Salary&Enrollment'!E7,'Worker Sheet for Enrollment Pro'!B2:I2,0)),0) -> 0 | H4: =IF('Course Salary&Enrollment'!E4+'Course Salary&Enrollment'!E5+'Course Salary&Enrollment'!E6 >0, INDEX('Worker Sheet for Enrollment Pro'!B9:I9, 1,MATCH('Course Salary&Enrollment'!E7,'Worker Sheet for Enrollment Pro'!B2:I2,0)),0) -> 0 | I4: =IF('Course Salary&Enrollment'!E4+'Course Salary&Enrollment'!E5+'Course Salary&Enrollment'!E6 >0, INDEX('Worker Sheet for Enrollment Pro'!B10:I10, 1,MATCH('Course Salary&Enrollment'!E7,'Worker Sheet for Enrollment Pro'!B2:I2,0)),0) -> 0 | J4: =IF('Course Salary&Enrollment'!E4+'Course Salary&Enrollment'!E5+'Course Salary&Enrollment'!E6 >0, INDEX('Worker Sheet for Enrollment Pro'!B11:I11, 1,MATCH('Course Salary&Enrollment'!E7,'Worker Sheet for Enrollment Pro'!B2:I2,0)),0) -> 0 | K4: =IF('Course Salary&Enrollment'!E4+'Course Salary&Enrollment'!E5+'Course Salary&Enrollment'!E6 >0, INDEX('Worker Sheet for Enrollment Pro'!B12:I12, 1,MATCH('Course Salary&Enrollment'!E7,'Worker Sheet for Enrollment Pro'!B2:I2,0)),0) -> 0 | L4: =IF('Course Salary&Enrollment'!E4+'Course Salary&Enrollment'!E5+'Course Salary&Enrollment'!E6 >0, INDEX('Worker Sheet for Enrollment Pro'!B13:I13, 1,MATCH('Course Salary&Enrollment'!E7,'Worker Sheet for Enrollment Pro'!B2:I2,0)),0) -> 0 | M4: =IF('Course Salary&Enrollment'!E4+'Course Salary&Enrollment'!E5+'Course Salary&Enrollment'!E6 >0, INDEX('Worker Sheet for Enrollment Pro'!B14:I14, 1,MATCH('Course Salary&Enrollment'!E7,'Worker Sheet for Enrollment Pro'!B2:I2,0)),0) -> 0 | N4: =SUM(B4:M4) -> 0
A5: Expected CNA Student Body (Course 3) | B5: =IF('Course Salary&Enrollment'!H4+'Course Salary&Enrollment'!H5+'Course Salary&Enrollment'!H6 >0, INDEX('Worker Sheet for Enrollment Pro'!B3:I3, 1,MATCH('Course Salary&Enrollment'!H7,'Worker Sheet for Enrollment Pro'!B2:I2,0)),0) -> 0 | C5: =IF('Course Salary&Enrollment'!H4+'Course Salary&Enrollment'!H5+'Course Salary&Enrollment'!H6 >0, INDEX('Worker Sheet for Enrollment Pro'!B4:I4, 1,MATCH('Course Salary&Enrollment'!H7,'Worker Sheet for Enrollment Pro'!B2:I2,0)),0) -> 0 | D5: =IF('Course Salary&Enrollment'!H4+'Course Salary&Enrollment'!H5+'Course Salary&Enrollment'!H6 >0, INDEX('Worker Sheet for Enrollment Pro'!B5:I5, 1,MATCH('Course Salary&Enrollment'!H7,'Worker Sheet for Enrollment Pro'!B2:I2,0)),0) -> 0 | E5: =IF('Course Salary&Enrollment'!H4+'Course Salary&Enrollment'!H5+'Course Salary&Enrollment'!H6 >0, INDEX('Worker Sheet for Enrollment Pro'!B6:I6, 1,MATCH('Course Salary&Enrollment'!H7,'Worker Sheet for Enrollment Pro'!B2:I2,0)),0) -> 0 | F5: =IF('Course Salary&Enrollment'!H4+'Course Salary&Enrollment'!H5+'Course Salary&Enrollment'!H6 >0, INDEX('Worker Sheet for Enrollment Pro'!B7:I7, 1,MATCH('Course Salary&Enrollment'!H7,'Worker Sheet for Enrollment Pro'!B2:I2,0)),0) -> 0 | G5: =IF('Course Salary&Enrollment'!H4+'Course Salary&Enrollment'!H5+'Course Salary&Enrollment'!H6 >0, INDEX('Worker Sheet for Enrollment Pro'!B8:I8, 1,MATCH('Course Salary&Enrollment'!H7,'Worker Sheet for Enrollment Pro'!B2:I2,0)),0) -> 0 | H5: =IF('Course Salary&Enrollment'!H4+'Course Salary&Enrollment'!H5+'Course Salary&Enrollment'!H6 >0, INDEX('Worker Sheet for Enrollment Pro'!B9:I9, 1,MATCH('Course Salary&Enrollment'!H7,'Worker Sheet for Enrollment Pro'!B2:I2,0)),0) -> 0 | I5: =IF('Course Salary&Enrollment'!H4+'Course Salary&Enrollment'!H5+'Course Salary&Enrollment'!H6 >0, INDEX('Worker Sheet for Enrollment Pro'!B10:I10, 1,MATCH('Course Salary&Enrollment'!H7,'Worker Sheet for Enrollment Pro'!B2:I2,0)),0) -> 0 | J5: =IF('Course Salary&Enrollment'!H4+'Course Salary&Enrollment'!H5+'Course Salary&Enrollment'!H6 >0, INDEX('Worker Sheet for Enrollment Pro'!B11:I11, 1,MATCH('Course Salary&Enrollment'!H7,'Worker Sheet for Enrollment Pro'!B2:I2,0)),0) -> 0 | K5: =IF('Course Salary&Enrollment'!H4+'Course Salary&Enrollment'!H5+'Course Salary&Enrollment'!H6 >0, INDEX('Worker Sheet for Enrollment Pro'!B12:I12, 1,MATCH('Course Salary&Enrollment'!H7,'Worker Sheet for Enrollment Pro'!B2:I2,0)),0) -> 0 | L5: =IF('Course Salary&Enrollment'!H4+'Course Salary&Enrollment'!H5+'Course Salary&Enrollment'!H6 >0, INDEX('Worker Sheet for Enrollment Pro'!B13:I13, 1,MATCH('Course Salary&Enrollment'!H7,'Worker Sheet for Enrollment Pro'!B2:I2,0)),0) -> 0 | M5: =IF('Course Salary&Enrollment'!H4+'Course Salary&Enrollment'!H5+'Course Salary&Enrollment'!H6 >0, INDEX('Worker Sheet for Enrollment Pro'!B14:I14, 1,MATCH('Course Salary&Enrollment'!H7,'Worker Sheet for Enrollment Pro'!B2:I2,0)),0) -> 0 | N5: 0
A6: Total Student Body | B6: =SUM(B3:B5) -> 2 | C6: =SUM(C3:C5) -> 3 | D6: 5 | E6: 7 | F6: 8 | G6: 10 | H6: 10 | I6: 10 | J6: 10 | K6: 10 | L6: 10 | M6: 10 | N6: 95
A7: CNATuition Fee per Student | B7: 1600 | C7: 1600 | D7: 1600 | E7: 1600 | F7: 1600 | G7: 1600 | H7: 1600 | I7: 1600 | J7: 1600 | K7: 1600 | L7: 1600 | M7: 1600
A8: Registration Fee per Student | B8: 50 | C8: 50 | D8: 50 | E8: 50 | F8: 50 | G8: 50 | H8: 50 | I8: 50 | J8: 50 | K8: 50 | L8: 50 | M8: 50
A9: Total Revenue | B9: =B6*(B7+B8) -> 3300 | C9: =C6*(C7+C8) -> 4950 | D9: 8250 | E9: 11550 | F9: 13200 | G9: 16500 | H9: 16500 | I9: 16500 | J9: 16500 | K9: 16500 | L9: 16500 | M9: 16500 | N9: =SUM(B9:M9) -> 156750
A11: Less Variable Costs | P11: Item Costs (Update Sample Figures below) | R11: =95/2 -> 47.5
A12: Textbook | B12: =P12*($B$6) -> 70 | C12: =P12*($C$6) -> 105 | D12: =P12*($D$6) -> 175 | E12: =P12*($E$6) -> 245 | F12: =P12*($F$6) -> 280 | G12: =P12*($G$6) -> 350 | H12: =P12*($H$6) -> 350 | I12: =P12*($I$6) -> 350 | J12: =P12*($J$6) -> 350 | K12: =P12*($K$6) -> 350 | L12: =P12*($L$6) -> 350 | M12: =P12*($M$6) -> 350 | P12: 35
A13: Workbook | B13: =P13*($B$6) -> 36 | C13: =P13*($C$6) -> 54 | D13: =P13*($D$6) -> 90 | E13: =P13*($E$6) -> 126 | F13: =P13*($F$6) -> 144 | G13: =P13*($G$6) -> 180 | H13: =P13*($H$6) -> 180 | I13: =P13*($I$6) -> 180 | J13: =P13*($J$6) -> 180 | K13: =P13*($K$6) -> 180 | L13: =P13*($L$6) -> 180 | M13: =P13*($M$6) -> 180 | P13: 18
A14: Uniforms | B14: =P14*($B$6) -> 60 | C14: =P14*($C$6) -> 90 | D14: =P14*($D$6) -> 150 | E14: =P14*($E$6) -> 210 | F14: =P14*($F$6) -> 240 | G14: =P14*($G$6) -> 300 | H14: =P14*($H$6) -> 300 | I14: =P14*($I$6) -> 300 | J14: =P14*($J$6) -> 300 | K14: =P14*($K$6) -> 300 | L14: =P14*($L$6) -> 300 | M14: =P14*($M$6) -> 300 | P14: 30
A15: I.D. Badges | B15: 10 | C15: 15 | D15: 25 | E15: 35 | F15: 40 | G15: 50 | H15: 50 | I15: 50 | J15: 50 | K15: 50 | L15: 50 | M15: 50 | P15: 5
A16: Blood Pressure Cuff & Stethoscope | B16: 34 | C16: 51 | D16: 85 | E16: 119 | F16: 136 | G16: 170 | H16: 170 | I16: 170 | J16: 170 | K16: 170 | L16: 170 | M16: 170 | P16: 17
A17: Second Hand Watch | B17: 10 | C17: 15 | D17: 25 | E17: 35 | F17: 40 | G17: 50 | H17: 50 | I17: 50 | J17: 50 | K17: 50 | L17: 50 | M17: 50 | P17: 5
A18: State Competency Examination | B18: 250 | C18: 375 | D18: 625 | E18: 875 | F18: 1000 | G18: 1250 | H18: 1250 | I18: 1250 | J18: 1250 | K18: 1250 | L18: 1250 | M18: 1250 | P18: 125
A19: CPR Certification | B19: 130 | C19: 195 | D19: 325 | E19: 455 | F19: 520 | G19: 650 | H19: 650 | I19: 650 | J19: 650 | K19: 650 | L19: 650 | M19: 650 | P19: 65
A20: PPD Test | B20: 20 | C20: 30 | D20: 50 | E20: 70 | F20: 80 | G20: 100 | H20: 100 | I20: 100 | J20: 100 | K20: 100 | L20: 100 | M20: 100 | P20: 10
A21: Drug Screen | B21: 100 | C21: 150 | D21: 250 | E21: 350 | F21: 400 | G21: 500 | H21: 500 | I21: 500 | J21: 500 | K21: 500 | L21: 500 | M21: 500 | P21: 50
A22: Background Check | B22: 50 | C22: 75 | D22: 125 | E22: 175 | F22: 200 | G22: 250 | H22: 250 | I22: 250 | J22: 250 | K22: 250 | L22: 250 | M22: 250 | P22: 25
A23: Pre-Recorded Lecture Licensing Fee | B23: =P23*($B$6) -> 0 | C23: =P23*($C$6) -> 0 | D23: =P23*($D$6) -> 0 | E23: =P23*($E$6) -> 0 | F23: =P23*($F$6) -> 0 | G23: =P23*($G$6) -> 0 | H23: =P23*($H$6) -> 0 | I23: =P23*($I$6) -> 0 | J23: =P23*($J$6) -> 0 | K23: =P23*($K$6) -> 0 | L23: =P23*($L$6) -> 0 | M23: =P23*($M$6) -> 0 | P23: 0
A24: Student Attrition Refunds | B24: =IF(B6*0.1>0.5,$P$24*ROUNDUP($B$6*0.1,0),0) -> 0 | C24: =IF(C6*0.1>0.5,$P$24*ROUNDUP($C$6*0.1,0),0) -> 0 | D24: =IF(D6*0.1>0.5,$P$24*ROUNDUP($D$6*0.1,0),0) -> 0 | E24: =IF(E6*0.1>0.5,$P$24*ROUNDUP($E$6*0.1,0),0) -> 0 | F24: =IF(F6*0.1>0.5,$P$24*ROUNDUP($F$6*0.1,0),0) -> 0 | G24: =IF(G6*0.1>0.5,$P$24*ROUNDUP($G$6*0.1,0),0) -> 0 | H24: =IF(H6*0.1>0.5,$P$24*ROUNDUP($H$6*0.1,0),0) -> 0 | I24: =IF(I6*0.1>0.5,$P$24*ROUNDUP($I$6*0.1,0),0) -> 0 | J24: =IF(J6*0.1>0.5,$P$24*ROUNDUP($J$6*0.1,0),0) -> 0 | K24: =IF(K6*0.1>0.5,$P$24*ROUNDUP($K$6*0.1,0),0) -> 0 | L24: =IF(L6*0.1>0.5,$P$24*ROUNDUP($L$6*0.1,0),0) -> 0 | M24: =IF(M6*0.1>0.5,$P$24*ROUNDUP($M$6*0.1,0),0) -> 0 | P24: 0
A26: Total Variable Costs | B26: =SUM(B12:B24) -> 770 | C26: 1155 | D26: 1925 | E26: 2695 | F26: 3080 | G26: 3850 | H26: 3850 | I26: 3850 | J26: 3850 | K26: 3850 | L26: 3850 | M26: 3850 | N26: =SUM(B26:M26) -> 36575
A28: Less Fixed Costs
A29: Rent | B29: 3000 | C29: 3000 | D29: 3000 | E29: 3000 | F29: 3000 | G29: 3000 | H29: 3000 | I29: 3000 | J29: 3000 | K29: 3000 | L29: 3000 | M29: 3000
A30: Utilities | B30: 350 | C30: 350 | D30: 350 | E30: 350 | F30: 350 | G30: 350 | H30: 350 | I30: 350 | J30: 350 | K30: 350 | L30: 350 | M30: 350
A31: Professional Liability Insurance | B31: 125 | C31: 125 | D31: 125 | E31: 125 | F31: 125 | G31: 125 | H31: 125 | I31: 125 | J31: 125 | K31: 125 | L31: 125 | M31: 125
A32: Student Insurance/Bond | B32: 25 | C32: 25 | D32: 25 | E32: 25 | F32: 25 | G32: 25 | H32: 25 | I32: 25 | J32: 25 | K32: 25 | L32: 25 | M32: 25
A33: Lab Supplies | B33: 100 | C33: 100 | D33: 100 | E33: 100 | F33: 100 | G33: 100 | H33: 100 | I33: 100 | J33: 100 | K33: 100 | L33: 100 | M33: 100
A34: Marketing | B34: 1000 | C34: 1000 | D34: 1000 | E34: 1000 | F34: 1000 | G34: 1000 | H34: 1000 | I34: 1000 | J34: 1000 | K34: 1000 | L34: 1000 | M34: 1000
A35: School Administrator (Owner) Salary | B35: 0 | C35: 0 | D35: 0 | E35: 0 | F35: 0 | G35: 0 | H35: 0 | I35: 0 | J35: 0 | K35: 0 | L35: 0 | M35: 0
A36: Program Coordinator Salary | B36: 4000 | C36: 4000 | D36: 4000 | E36: 4000 | F36: 4000 | G36: 4000 | H36: 4000 | I36: 4000 | J36: 4000 | K36: 4000 | L36: 4000 | M36: 4000
A37: CNA Instructor Salary | B37: ='Course Salary&Enrollment'!$D$11+'Course Salary&Enrollment'!$D$12 -> 2437.5 | C37: ='Course Salary&Enrollment'!$D$11+'Course Salary&Enrollment'!$D$12 -> 2437.5 | D37: ='Course Salary&Enrollment'!$D$11+'Course Salary&Enrollment'!$D$12 -> 2437.5 | E37: ='Course Salary&Enrollment'!$D$11+'Course Salary&Enrollment'!$D$12 -> 2437.5 | F37: ='Course Salary&Enrollment'!$D$11+'Course Salary&Enrollment'!$D$12 -> 2437.5 | G37: ='Course Salary&Enrollment'!$D$11+'Course Salary&Enrollment'!$D$12 -> 2437.5 | H37: ='Course Salary&Enrollment'!$D$11+'Course Salary&Enrollment'!$D$12 -> 2437.5 | I37: ='Course Salary&Enrollment'!$D$11+'Course Salary&Enrollment'!$D$12 -> 2437.5 | J37: ='Course Salary&Enrollment'!$D$11+'Course Salary&Enrollment'!$D$12 -> 2437.5 | K37: ='Course Salary&Enrollment'!$D$11+'Course Salary&Enrollment'!$D$12 -> 2437.5 | L37: ='Course Salary&Enrollment'!$D$11+'Course Salary&Enrollment'!$D$12 -> 2437.5 | M37: ='Course Salary&Enrollment'!$D$11+'Course Salary&Enrollment'!$D$12 -> 2437.5
A38: Secretary Salary | B38: 1000 | C38: 1000 | D38: 1000 | E38: 1000 | F38: 1000 | G38: 1000 | H38: 1000 | I38: 1000 | J38: 1000 | K38: 1000 | L38: 1000 | M38: 1000
A39: Incidentals/Unforseen Costs | B39: 100 | C39: 100 | D39: 100 | E39: 100 | F39: 100 | G39: 100 | H39: 100 | I39: 100 | J39: 100 | K39: 100 | L39: 100 | M39: 100
A40: Total Fixed Costs | B40: =SUM(B29:B39) -> 12137.5 | C40: =SUM(C29:C39) -> 12137.5 | D40: =SUM(D29:D39) -> 12137.5 | E40: 12137.5 | F40: 12137.5 | G40: 12137.5 | H40: 12137.5 | I40: 12137.5 | J40: 12137.5 | K40: 12137.5 | L40: 12137.5 | M40: 12137.5 | N40: =SUM(B40:M40) -> 145650
A42: Total Expenses | B42: =B26+B40 -> 12907.5 | C42: 13292.5 | D42: 14062.5 | E42: 14832.5 | F42: 15217.5 | G42: 15987.5 | H42: 15987.5 | I42: 15987.5 | J42: 15987.5 | K42: 15987.5 | L42: 15987.5 | M42: 15987.5 | N42: =SUM(B42:M42) -> 182225
A44: NET PROFIT BEFORE TAXES | B44: =B9-B42 -> -9607.5 | C44: -8342.5 | D44: -5812.5 | E44: -3282.5 | F44: -2017.5 | G44: 512.5 | H44: 512.5 | I44: 512.5 | J44: 512.5 | K44: 512.5 | L44: 512.5 | M44: 512.5 | N44: =SUM(B44:M44) -> -25475
A47: *It is typical to operate in a deficit in the first three months, and is considered a start up expense. This amount is calclated to help you with financial planning. | B47: Outcome for First 3 months | C47: =SUM(B44:D44) -> -23762.5
A48: =IF(E44<0,"Your deficit extends beyond the first three months. It may be worth taking a second look at your numbers.","" ) -> Your deficit extends beyond the first three months. It may be worth taking a second look at your numbers.

Sheet School YR 2
A1: ='Instructions and Notes'!Q2 & " " & 'Instructions and Notes'!Q4+1 & " Operating Budget" & CHAR(10) &"(Second Year)" -> New School Name ® 2024 Operating Budget (Second Year)
A2: Account Name | B2: Month 1 | C2: Month 2 | D2: Month 3 | E2: Month 4 | F2: Month 5 | G2: Month 6 | H2: Month 7 | I2: Month 8 | J2: Month 9 | K2: Month 10 | L2: Month 11 | M2: Month 12 | N2: Months 1-12
A3: ='School YR 1'!A3 -> Expected CNA Student Body (Course 1) *1 four week class | B3: =INDEX('Worker Sheet for Enrollment Pro'!B19:I19, 1,MATCH('Course Salary&Enrollment'!B7,'Worker Sheet for Enrollment Pro'!B2:I2,0)) -> 10 | C3: =INDEX('Worker Sheet for Enrollment Pro'!B20:I20, 1,MATCH('Course Salary&Enrollment'!B7,'Worker Sheet for Enrollment Pro'!B2:I2,0)) -> 10 | D3: =INDEX('Worker Sheet for Enrollment Pro'!B21:I21, 1,MATCH('Course Salary&Enrollment'!B7,'Worker Sheet for Enrollment Pro'!B2:I2,0)) -> 10 | E3: =INDEX('Worker Sheet for Enrollment Pro'!B22:I22, 1,MATCH('Course Salary&Enrollment'!B7,'Worker Sheet for Enrollment Pro'!B2:I2,0)) -> 10 | F3: =INDEX('Worker Sheet for Enrollment Pro'!B23:I23, 1,MATCH('Course Salary&Enrollment'!B7,'Worker Sheet for Enrollment Pro'!B2:I2,0)) -> 10 | G3: =INDEX('Worker Sheet for Enrollment Pro'!B24:I24, 1,MATCH('Course Salary&Enrollment'!B7,'Worker Sheet for Enrollment Pro'!B2:I2,0)) -> 10 | H3: =INDEX('Worker Sheet for Enrollment Pro'!B25:I25, 1,MATCH('Course Salary&Enrollment'!B7,'Worker Sheet for Enrollment Pro'!B2:I2,0)) -> 10 | I3: =INDEX('Worker Sheet for Enrollment Pro'!B26:I26, 1,MATCH('Course Salary&Enrollment'!B7,'Worker Sheet for Enrollment Pro'!B2:I2,0)) -> 10 | J3: =INDEX('Worker Sheet for Enrollment Pro'!B27:I27, 1,MATCH('Course Salary&Enrollment'!B7,'Worker Sheet for Enrollment Pro'!B2:I2,0)) -> 10 | K3: =INDEX('Worker Sheet for Enrollment Pro'!B28:I28, 1,MATCH('Course Salary&Enrollment'!B7,'Worker Sheet for Enrollment Pro'!B2:I2,0)) -> 10 | L3: =INDEX('Worker Sheet for Enrollment Pro'!B29:I29, 1,MATCH('Course Salary&Enrollment'!B7,'Worker Sheet for Enrollment Pro'!B2:I2,0)) -> 10 | M3: =INDEX('Worker Sheet for Enrollment Pro'!B30:I30, 1,MATCH('Course Salary&Enrollment'!B7,'Worker Sheet for Enrollment Pro'!B2:I2,0)) -> 10 | N3: =SUM(B3:M3) -> 120
A4: ='School YR 1'!A4 -> Expected CNA Student Body (Course 2) | B4: =IF('Course Salary&Enrollment'!E4+'Course Salary&Enrollment'!E5+'Course Salary&Enrollment'!E6 >0, INDEX('Worker Sheet for Enrollment Pro'!B19:I19, 1,MATCH('Course Salary&Enrollment'!E7,'Worker Sheet for Enrollment Pro'!B2:I2,0)),0) -> 0 | C4: =IF('Course Salary&Enrollment'!E4+'Course Salary&Enrollment'!E5+'Course Salary&Enrollment'!E6 >0, INDEX('Worker Sheet for Enrollment Pro'!B20:I20, 1,MATCH('Course Salary&Enrollment'!E7,'Worker Sheet for Enrollment Pro'!B2:I2,0)),0) -> 0 | D4: =IF('Course Salary&Enrollment'!E4+'Course Salary&Enrollment'!E5+'Course Salary&Enrollment'!E6 >0, INDEX('Worker Sheet for Enrollment Pro'!B21:I21, 1,MATCH('Course Salary&Enrollment'!E7,'Worker Sheet for Enrollment Pro'!B2:I2,0)),0) -> 0 | E4: =IF('Course Salary&Enrollment'!E4+'Course Salary&Enrollment'!E5+'Course Salary&Enrollment'!E6 >0, INDEX('Worker Sheet for Enrollment Pro'!B22:I22, 1,MATCH('Course Salary&Enrollment'!E7,'Worker Sheet for Enrollment Pro'!B2:I2,0)),0) -> 0 | F4: =IF('Course Salary&Enrollment'!E4+'Course Salary&Enrollment'!E5+'Course Salary&Enrollment'!E6 >0, INDEX('Worker Sheet for Enrollment Pro'!B23:I23, 1,MATCH('Course Salary&Enrollment'!E7,'Worker Sheet for Enrollment Pro'!B2:I2,0)),0) -> 0 | G4: =IF('Course Salary&Enrollment'!E4+'Course Salary&Enrollment'!E5+'Course Salary&Enrollment'!E6 >0, INDEX('Worker Sheet for Enrollment Pro'!B24:I24, 1,MATCH('Course Salary&Enrollment'!E7,'Worker Sheet for Enrollment Pro'!B2:I2,0)),0) -> 0 | H4: =IF('Course Salary&Enrollment'!E4+'Course Salary&Enrollment'!E5+'Course Salary&Enrollment'!E6 >0, INDEX('Worker Sheet for Enrollment Pro'!B25:I25, 1,MATCH('Course Salary&Enrollment'!E7,'Worker Sheet for Enrollment Pro'!B2:I2,0)),0) -> 0 | I4: =IF('Course Salary&Enrollment'!E4+'Course Salary&Enrollment'!E5+'Course Salary&Enrollment'!E6 >0, INDEX('Worker Sheet for Enrollment Pro'!B26:I26, 1,MATCH('Course Salary&Enrollment'!E7,'Worker Sheet for Enrollment Pro'!B2:I2,0)),0) -> 0 | J4: =IF('Course Salary&Enrollment'!E4+'Course Salary&Enrollment'!E5+'Course Salary&Enrollment'!E6 >0, INDEX('Worker Sheet for Enrollment Pro'!B27:I27, 1,MATCH('Course Salary&Enrollment'!E7,'Worker Sheet for Enrollment Pro'!B2:I2,0)),0) -> 0 | K4: =IF('Course Salary&Enrollment'!E4+'Course Salary&Enrollment'!E5+'Course Salary&Enrollment'!E6 >0, INDEX('Worker Sheet for Enrollment Pro'!B28:I28, 1,MATCH('Course Salary&Enrollment'!E7,'Worker Sheet for Enrollment Pro'!B2:I2,0)),0) -> 0 | L4: =IF('Course Salary&Enrollment'!E4+'Course Salary&Enrollment'!E5+'Course Salary&Enrollment'!E6 >0, INDEX('Worker Sheet for Enrollment Pro'!B29:I29, 1,MATCH('Course Salary&Enrollment'!E7,'Worker Sheet for Enrollment Pro'!B2:I2,0)),0) -> 0 | M4: =IF('Course Salary&Enrollment'!E4+'Course Salary&Enrollment'!E5+'Course Salary&Enrollment'!E6 >0, INDEX('Worker Sheet for Enrollment Pro'!B30:I30, 1,MATCH('Course Salary&Enrollment'!E7,'Worker Sheet for Enrollment Pro'!B2:I2,0)),0) -> 0 | N4: =SUM(B4:M4) -> 0
A5: ='School YR 1'!A5 -> Expected CNA Student Body (Course 3) | B5: =IF('Course Salary&Enrollment'!H4+'Course Salary&Enrollment'!H5+'Course Salary&Enrollment'!H6 >0, INDEX('Worker Sheet for Enrollment Pro'!B19:I19, 1,MATCH('Course Salary&Enrollment'!H7,'Worker Sheet for Enrollment Pro'!B2:I2,0)),0) -> 0 | C5: =IF('Course Salary&Enrollment'!H4+'Course Salary&Enrollment'!H5+'Course Salary&Enrollment'!H6 >0, INDEX('Worker Sheet for Enrollment Pro'!B20:I20, 1,MATCH('Course Salary&Enrollment'!H7,'Worker Sheet for Enrollment Pro'!B2:I2,0)),0) -> 0 | D5: =IF('Course Salary&Enrollment'!H4+'Course Salary&Enrollment'!H5+'Course Salary&Enrollment'!H6 >0, INDEX('Worker Sheet for Enrollment Pro'!B21:I21, 1,MATCH('Course Salary&Enrollment'!H7,'Worker Sheet for Enrollment Pro'!B2:I2,0)),0) -> 0 | E5: =IF('Course Salary&Enrollment'!H4+'Course Salary&Enrollment'!H5+'Course Salary&Enrollment'!H6 >0, INDEX('Worker Sheet for Enrollment Pro'!B22:I22, 1,MATCH('Course Salary&Enrollment'!H7,'Worker Sheet for Enrollment Pro'!B2:I2,0)),0) -> 0 | F5: =IF('Course Salary&Enrollment'!H4+'Course Salary&Enrollment'!H5+'Course Salary&Enrollment'!H6 >0, INDEX('Worker Sheet for Enrollment Pro'!B23:I23, 1,MATCH('Course Salary&Enrollment'!H7,'Worker Sheet for Enrollment Pro'!B2:I2,0)),0) -> 0 | G5: =IF('Course Salary&Enrollment'!H4+'Course Salary&Enrollment'!H5+'Course Salary&Enrollment'!H6 >0, INDEX('Worker Sheet for Enrollment Pro'!B24:I24, 1,MATCH('Course Salary&Enrollment'!H7,'Worker Sheet for Enrollment Pro'!B2:I2,0)),0) -> 0 | H5: =IF('Course Salary&Enrollment'!H4+'Course Salary&Enrollment'!H5+'Course Salary&Enrollment'!H6 >0, INDEX('Worker Sheet for Enrollment Pro'!B25:I25, 1,MATCH('Course Salary&Enrollment'!H7,'Worker Sheet for Enrollment Pro'!B2:I2,0)),0) -> 0 | I5: =IF('Course Salary&Enrollment'!H4+'Course Salary&Enrollment'!H5+'Course Salary&Enrollment'!H6 >0, INDEX('Worker Sheet for Enrollment Pro'!B26:I26, 1,MATCH('Course Salary&Enrollment'!H7,'Worker Sheet for Enrollment Pro'!B2:I2,0)),0) -> 0 | J5: =IF('Course Salary&Enrollment'!H4+'Course Salary&Enrollment'!H5+'Course Salary&Enrollment'!H6 >0, INDEX('Worker Sheet for Enrollment Pro'!B27:I27, 1,MATCH('Course Salary&Enrollment'!H7,'Worker Sheet for Enrollment Pro'!B2:I2,0)),0) -> 0 | K5: =IF('Course Salary&Enrollment'!H4+'Course Salary&Enrollment'!H5+'Course Salary&Enrollment'!H6 >0, INDEX('Worker Sheet for Enrollment Pro'!B28:I28, 1,MATCH('Course Salary&Enrollment'!H7,'Worker Sheet for Enrollment Pro'!B2:I2,0)),0) -> 0 | L5: =IF('Course Salary&Enrollment'!H4+'Course Salary&Enrollment'!H5+'Course Salary&Enrollment'!H6 >0, INDEX('Worker Sheet for Enrollment Pro'!B29:I29, 1,MATCH('Course Salary&Enrollment'!H7,'Worker Sheet for Enrollment Pro'!B2:I2,0)),0) -> 0 | M5: =IF('Course Salary&Enrollment'!H4+'Course Salary&Enrollment'!H5+'Course Salary&Enrollment'!H6 >0, INDEX('Worker Sheet for Enrollment Pro'!B30:I30, 1,MATCH('Course Salary&Enrollment'!H7,'Worker Sheet for Enrollment Pro'!B2:I2,0)),0) -> 0 | N5: 0
A6: Total Student Body | B6: =SUM(B3:B5) -> 10 | C6: =SUM(C3:C5) -> 10 | D6: 10 | E6: 10 | F6: 10 | G6: 10 | H6: 10 | I6: 10 | J6: 10 | K6: 10 | L6: 10 | M6: 10 | N6: 120
A7: CNATuition Fee per Student | B7: 1600 | C7: 1600 | D7: 1600 | E7: 1600 | F7: 1600 | G7: 1600 | H7: 1600 | I7: 1600 | J7: 1600 | K7: 1600 | L7: 1600 | M7: 1600
A8: Registration Fee per Student | B8: 50 | C8: 50 | D8: 50 | E8: 50 | F8: 50 | G8: 50 | H8: 50 | I8: 50 | J8: 50 | K8: 50 | L8: 50 | M8: 50
A9: Total Revenue | B9: =B6*(B7+B8) -> 16500 | C9: =C6*(C7+C8) -> 16500 | D9: 16500 | E9: 16500 | F9: 16500 | G9: 16500 | H9: 16500 | I9: 16500 | J9: 16500 | K9: 16500 | L9: 16500 | M9: 16500 | N9: =SUM(B9:M9) -> 198000
A11: Less Variable Costs | P11: Item Costs (From first year)
A12: Textbook | B12: =P12*($B$6) -> 350 | C12: =P12*($C$6) -> 350 | D12: =P12*($D$6) -> 350 | E12: =P12*($E$6) -> 350 | F12: =P12*($F$6) -> 350 | G12: =P12*($G$6) -> 350 | H12: =P12*($H$6) -> 350 | I12: =P12*($I$6) -> 350 | J12: =P12*($J$6) -> 350 | K12: =P12*($K$6) -> 350 | L12: =P12*($L$6) -> 350 | M12: =P12*($M$6) -> 350 | P12: ='School YR 1'!P12 -> 35
A13: Workbook | B13: =P13*($B$6) -> 180 | C13: =P13*($C$6) -> 180 | D13: =P13*($D$6) -> 180 | E13: =P13*($E$6) -> 180 | F13: =P13*($F$6) -> 180 | G13: =P13*($G$6) -> 180 | H13: =P13*($H$6) -> 180 | I13: =P13*($I$6) -> 180 | J13: =P13*($J$6) -> 180 | K13: =P13*($K$6) -> 180 | L13: =P13*($L$6) -> 180 | M13: =P13*($M$6) -> 180 | P13: ='School YR 1'!P13 -> 18
A14: Uniforms | B14: =P14*($B$6) -> 300 | C14: =P14*($C$6) -> 300 | D14: =P14*($D$6) -> 300 | E14: =P14*($E$6) -> 300 | F14: =P14*($F$6) -> 300 | G14: =P14*($G$6) -> 300 | H14: =P14*($H$6) -> 300 | I14: =P14*($I$6) -> 300 | J14: =P14*($J$6) -> 300 | K14: =P14*($K$6) -> 300 | L14: =P14*($L$6) -> 300 | M14: =P14*($M$6) -> 300 | P14: ='School YR 1'!P14 -> 30
A15: I.D. Badges | B15: 50 | C15: 50 | D15: 50 | E15: 50 | F15: 50 | G15: 50 | H15: 50 | I15: 50 | J15: 50 | K15: 50 | L15: 50 | M15: 50 | P15: ='School YR 1'!P15 -> 5
A16: Blood Pressure Cuff & Stethoscope | B16: 170 | C16: 170 | D16: 170 | E16: 170 | F16: 170 | G16: 170 | H16: 170 | I16: 170 | J16: 170 | K16: 170 | L16: 170 | M16: 170 | P16: ='School YR 1'!P16 -> 17
A17: Second Hand Watch | B17: 50 | C17: 50 | D17: 50 | E17: 50 | F17: 50 | G17: 50 | H17: 50 | I17: 50 | J17: 50 | K17: 50 | L17: 50 | M17: 50 | P17: ='School YR 1'!P17 -> 5
A18: State Competency Examination | B18: 1250 | C18: 1250 | D18: 1250 | E18: 1250 | F18: 1250 | G18: 1250 | H18: 1250 | I18: 1250 | J18: 1250 | K18: 1250 | L18: 1250 | M18: 1250 | P18: ='School YR 1'!P18 -> 125
A19: CPR Certification | B19: =P19*($B$6) -> 650 | C19: =P19*($C$6) -> 650 | D19: =P19*($D$6) -> 650 | E19: =P19*($E$6) -> 650 | F19: =P19*($F$6) -> 650 | G19: =P19*($G$6) -> 650 | H19: =P19*($H$6) -> 650 | I19: =P19*($I$6) -> 650 | J19: =P19*($J$6) -> 650 | K19: =P19*($K$6) -> 650 | L19: =P19*($L$6) -> 650 | M19: =P19*($M$6) -> 650 | P19: ='School YR 1'!P19 -> 65
A20: PPD Test | B20: 100 | C20: 100 | D20: 100 | E20: 100 | F20: 100 | G20: 100 | H20: 100 | I20: 100 | J20: 100 | K20: 100 | L20: 100 | M20: 100 | P20: ='School YR 1'!P20 -> 10
A21: Drug Screening | B21: 500 | C21: 500 | D21: 500 | E21: 500 | F21: 500 | G21: 500 | H21: 500 | I21: 500 | J21: 500 | K21: 500 | L21: 500 | M21: 500 | P21: ='School YR 1'!P21 -> 50
A22: Background Check | B22: 250 | C22: 250 | D22: 250 | E22: 250 | F22: 250 | G22: 250 | H22: 250 | I22: 250 | J22: 250 | K22: 250 | L22: 250 | M22: 250 | P22: ='School YR 1'!P22 -> 25
A23: Pre-Recorded Lecture Licensing Fee | B23: =P23*($B$6) -> 0 | C23: =P23*($C$6) -> 0 | D23: =P23*($D$6) -> 0 | E23: =P23*($E$6) -> 0 | F23: =P23*($F$6) -> 0 | G23: =P23*($G$6) -> 0 | H23: =P23*($H$6) -> 0 | I23: =P23*($I$6) -> 0 | J23: =P23*($J$6) -> 0 | K23: =P23*($K$6) -> 0 | L23: =P23*($L$6) -> 0 | M23: =P23*($M$6) -> 0 | P23: ='School YR 1'!P23 -> 0
A24: Student Attrition Refunds | B24: =IF(B6*0.1>0.5,$P$24*ROUNDUP($B$6*0.1,0),0) -> 0 | C24: =IF(C6*0.1>0.5,$P$24*ROUNDUP($C$6*0.1,0),0) -> 0 | D24: =IF(D6*0.1>0.5,$P$24*ROUNDUP($D$6*0.1,0),0) -> 0 | E24: =IF(E6*0.1>0.5,$P$24*ROUNDUP($E$6*0.1,0),0) -> 0 | F24: =IF(F6*0.1>0.5,$P$24*ROUNDUP($F$6*0.1,0),0) -> 0 | G24: =IF(G6*0.1>0.5,$P$24*ROUNDUP($G$6*0.1,0),0) -> 0 | H24: =IF(H6*0.1>0.5,$P$24*ROUNDUP($H$6*0.1,0),0) -> 0 | I24: =IF(I6*0.1>0.5,$P$24*ROUNDUP($I$6*0.1,0),0) -> 0 | J24: =IF(J6*0.1>0.5,$P$24*ROUNDUP($J$6*0.1,0),0) -> 0 | K24: =IF(K6*0.1>0.5,$P$24*ROUNDUP($K$6*0.1,0),0) -> 0 | L24: =IF(L6*0.1>0.5,$P$24*ROUNDUP($L$6*0.1,0),0) -> 0 | M24: =IF(M6*0.1>0.5,$P$24*ROUNDUP($M$6*0.1,0),0) -> 0 | P24: ='School YR 1'!P24 -> 0
A26: Total Variable Costs | B26: =SUM(B12:B24) -> 3850 | C26: =SUM(C12:C24) -> 3850 | D26: 3850 | E26: 3850 | F26: 3850 | G26: 3850 | H26: 3850 | I26: 3850 | J26: 3850 | K26: 3850 | L26: 3850 | M26: 3850 | N26: =SUM(B26:M26) -> 46200
A28: Less Fixed Costs
A29: Rent | B29: ='School YR 1'!B29 -> 3000 | C29: ='School YR 1'!C29 -> 3000 | D29: ='School YR 1'!D29 -> 3000 | E29: ='School YR 1'!E29 -> 3000 | F29: ='School YR 1'!F29 -> 3000 | G29: ='School YR 1'!G29 -> 3000 | H29: ='School YR 1'!H29 -> 3000 | I29: ='School YR 1'!I29 -> 3000 | J29: ='School YR 1'!J29 -> 3000 | K29: ='School YR 1'!K29 -> 3000 | L29: ='School YR 1'!L29 -> 3000 | M29: ='School YR 1'!M29 -> 3000
A30: Utilities | B30: ='School YR 1'!B30 -> 350 | C30: ='School YR 1'!C30 -> 350 | D30: ='School YR 1'!D30 -> 350 | E30: ='School YR 1'!E30 -> 350 | F30: ='School YR 1'!F30 -> 350 | G30: ='School YR 1'!G30 -> 350 | H30: ='School YR 1'!H30 -> 350 | I30: ='School YR 1'!I30 -> 350 | J30: ='School YR 1'!J30 -> 350 | K30: ='School YR 1'!K30 -> 350 | L30: ='School YR 1'!L30 -> 350 | M30: ='School YR 1'!M30 -> 350
A31: Professional Liability Insurance | B31: ='School YR 1'!B31 -> 125 | C31: ='School YR 1'!C31 -> 125 | D31: ='School YR 1'!D31 -> 125 | E31: ='School YR 1'!E31 -> 125 | F31: ='School YR 1'!F31 -> 125 | G31: ='School YR 1'!G31 -> 125 | H31: ='School YR 1'!H31 -> 125 | I31: ='School YR 1'!I31 -> 125 | J31: ='School YR 1'!J31 -> 125 | K31: ='School YR 1'!K31 -> 125 | L31: ='School YR 1'!L31 -> 125 | M31: ='School YR 1'!M31 -> 125
A32: Student Insurance/Bond | B32: ='School YR 1'!B32 -> 25 | C32: ='School YR 1'!C32 -> 25 | D32: ='School YR 1'!D32 -> 25 | E32: ='School YR 1'!E32 -> 25 | F32: ='School YR 1'!F32 -> 25 | G32: ='School YR 1'!G32 -> 25 | H32: ='School YR 1'!H32 -> 25 | I32: ='School YR 1'!I32 -> 25 | J32: ='School YR 1'!J32 -> 25 | K32: ='School YR 1'!K32 -> 25 | L32: ='School YR 1'!L32 -> 25 | M32: ='School YR 1'!M32 -> 25
A33: Lab Supplies | B33: ='School YR 1'!B33 -> 100 | C33: ='School YR 1'!C33 -> 100 | D33: ='School YR 1'!D33 -> 100 | E33: ='School YR 1'!E33 -> 100 | F33: ='School YR 1'!F33 -> 100 | G33: ='School YR 1'!G33 -> 100 | H33: ='School YR 1'!H33 -> 100 | I33: ='School YR 1'!I33 -> 100 | J33: ='School YR 1'!J33 -> 100 | K33: ='School YR 1'!K33 -> 100 | L33: ='School YR 1'!L33 -> 100 | M33: ='School YR 1'!M33 -> 100
A34: Marketing | B34: ='School YR 1'!B34 -> 1000 | C34: ='School YR 1'!C34 -> 1000 | D34: ='School YR 1'!D34 -> 1000 | E34: ='School YR 1'!E34 -> 1000 | F34: ='School YR 1'!F34 -> 1000 | G34: ='School YR 1'!G34 -> 1000 | H34: ='School YR 1'!H34 -> 1000 | I34: ='School YR 1'!I34 -> 1000 | J34: ='School YR 1'!J34 -> 1000 | K34: ='School YR 1'!K34 -> 1000 | L34: ='School YR 1'!L34 -> 1000 | M34: ='School YR 1'!M34 -> 1000
A35: School Administrator (Owner) Salary | B35: ='School YR 1'!B35 -> 0 | C35: ='School YR 1'!C35 -> 0 | D35: ='School YR 1'!D35 -> 0 | E35: ='School YR 1'!E35 -> 0 | F35: ='School YR 1'!F35 -> 0 | G35: ='School YR 1'!G35 -> 0 | H35: ='School YR 1'!H35 -> 0 | I35: ='School YR 1'!I35 -> 0 | J35: ='School YR 1'!J35 -> 0 | K35: ='School YR 1'!K35 -> 0 | L35: ='School YR 1'!L35 -> 0 | M35: ='School YR 1'!M35 -> 0
A36: Program Coordinator Salary | B36: ='School YR 1'!B36 -> 4000 | C36: ='School YR 1'!C36 -> 4000 | D36: ='School YR 1'!D36 -> 4000 | E36: ='School YR 1'!E36 -> 4000 | F36: ='School YR 1'!F36 -> 4000 | G36: ='School YR 1'!G36 -> 4000 | H36: ='School YR 1'!H36 -> 4000 | I36: ='School YR 1'!I36 -> 4000 | J36: ='School YR 1'!J36 -> 4000 | K36: ='School YR 1'!K36 -> 4000 | L36: ='School YR 1'!L36 -> 4000 | M36: ='School YR 1'!M36 -> 4000
A37: CNA Instructor Salary | B37: ='School YR 1'!B37 -> 2437.5 | C37: ='School YR 1'!C37 -> 2437.5 | D37: ='School YR 1'!D37 -> 2437.5 | E37: ='School YR 1'!E37 -> 2437.5 | F37: ='School YR 1'!F37 -> 2437.5 | G37: ='School YR 1'!G37 -> 2437.5 | H37: ='School YR 1'!H37 -> 2437.5 | I37: ='School YR 1'!I37 -> 2437.5 | J37: ='School YR 1'!J37 -> 2437.5 | K37: ='School YR 1'!K37 -> 2437.5 | L37: ='School YR 1'!L37 -> 2437.5 | M37: ='School YR 1'!M37 -> 2437.5
A38: Secretary Salary | B38: ='School YR 1'!B38 -> 1000 | C38: ='School YR 1'!C38 -> 1000 | D38: ='School YR 1'!D38 -> 1000 | E38: ='School YR 1'!E38 -> 1000 | F38: ='School YR 1'!F38 -> 1000 | G38: ='School YR 1'!G38 -> 1000 | H38: ='School YR 1'!H38 -> 1000 | I38: ='School YR 1'!I38 -> 1000 | J38: ='School YR 1'!J38 -> 1000 | K38: ='School YR 1'!K38 -> 1000 | L38: ='School YR 1'!L38 -> 1000 | M38: ='School YR 1'!M38 -> 1000
A39: Incidentals/Unforseen Costs | B39: ='School YR 1'!B39 -> 100 | C39: ='School YR 1'!C39 -> 100 | D39: ='School YR 1'!D39 -> 100 | E39: ='School YR 1'!E39 -> 100 | F39: ='School YR 1'!F39 -> 100 | G39: ='School YR 1'!G39 -> 100 | H39: ='School YR 1'!H39 -> 100 | I39: ='School YR 1'!I39 -> 100 | J39: ='School YR 1'!J39 -> 100 | K39: ='School YR 1'!K39 -> 100 | L39: ='School YR 1'!L39 -> 100 | M39: ='School YR 1'!M39 -> 100
A40: Total Fixed Costs | B40: =SUM(B29:B39) -> 12137.5 | C40: =SUM(C29:C39) -> 12137.5 | D40: =SUM(D29:D39) -> 12137.5 | E40: 12137.5 | F40: 12137.5 | G40: 12137.5 | H40: 12137.5 | I40: 12137.5 | J40: 12137.5 | K40: 12137.5 | L40: 12137.5 | M40: 12137.5 | N40: =SUM(B40:M40) -> 145650
A42: Total Expenses | B42: =B26+B40 -> 15987.5 | C42: 15987.5 | D42: 15987.5 | E42: 15987.5 | F42: 15987.5 | G42: 15987.5 | H42: 15987.5 | I42: 15987.5 | J42: 15987.5 | K42: 15987.5 | L42: 15987.5 | M42: 15987.5 | N42: =SUM(B42:M42) -> 191850
A44: NET PROFIT BEFORE TAXES | B44: =B9-B42 -> 512.5 | C44: 512.5 | D44: 512.5 | E44: 512.5 | F44: 512.5 | G44: 512.5 | H44: 512.5 | I44: 512.5 | J44: 512.5 | K44: 512.5 | L44: 512.5 | M44: 512.5 | N44: =SUM(B44:M44) -> 6150

Sheet School YR 3
A1: ='Instructions and Notes'!Q2 & " " & 'Instructions and Notes'!Q4+2 & " Operating Budget" & CHAR(10) &"(Third Year)" -> New School Name ® 2025 Operating Budget (Third Year)
A2: Account Name | B2: Month 1 | C2: Month 2 | D2: Month 3 | E2: Month 4 | F2: Month 5 | G2: Month 6 | H2: Month 7 | I2: Month 8 | J2: Month 9 | K2: Month 10 | L2: Month 11 | M2: Month 12 | N2: Months 1-12
A3: ='School YR 1'!A3 -> Expected CNA Student Body (Course 1) *1 four week class | B3: =INDEX('Worker Sheet for Enrollment Pro'!B34:I34, 1,MATCH('Course Salary&Enrollment'!B7,'Worker Sheet for Enrollment Pro'!B2:I2,0)) -> 10 | C3: =INDEX('Worker Sheet for Enrollment Pro'!B35:I35, 1,MATCH('Course Salary&Enrollment'!B7,'Worker Sheet for Enrollment Pro'!B2:I2,0)) -> 10 | D3: =INDEX('Worker Sheet for Enrollment Pro'!B36:I36, 1,MATCH('Course Salary&Enrollment'!B7,'Worker Sheet for Enrollment Pro'!B2:I2,0)) -> 10 | E3: =INDEX('Worker Sheet for Enrollment Pro'!B37:I237, 1,MATCH('Course Salary&Enrollment'!B7,'Worker Sheet for Enrollment Pro'!B2:I2,0)) -> 10 | F3: =INDEX('Worker Sheet for Enrollment Pro'!B38:I238, 1,MATCH('Course Salary&Enrollment'!B7,'Worker Sheet for Enrollment Pro'!B2:I2,0)) -> 10 | G3: =INDEX('Worker Sheet for Enrollment Pro'!B39:I39, 1,MATCH('Course Salary&Enrollment'!B7,'Worker Sheet for Enrollment Pro'!B2:I2,0)) -> 10 | H3: =INDEX('Worker Sheet for Enrollment Pro'!B40:I40, 1,MATCH('Course Salary&Enrollment'!B7,'Worker Sheet for Enrollment Pro'!B2:I2,0)) -> 10 | I3: =INDEX('Worker Sheet for Enrollment Pro'!B41:I41, 1,MATCH('Course Salary&Enrollment'!B7,'Worker Sheet for Enrollment Pro'!B2:I2,0)) -> 10 | J3: =INDEX('Worker Sheet for Enrollment Pro'!B42:I42, 1,MATCH('Course Salary&Enrollment'!B7,'Worker Sheet for Enrollment Pro'!B2:I2,0)) -> 10 | K3: =INDEX('Worker Sheet for Enrollment Pro'!B43:I43, 1,MATCH('Course Salary&Enrollment'!B7,'Worker Sheet for Enrollment Pro'!B2:I2,0)) -> 10 | L3: =INDEX('Worker Sheet for Enrollment Pro'!B44:I44, 1,MATCH('Course Salary&Enrollment'!B7,'Worker Sheet for Enrollment Pro'!B2:I2,0)) -> 10 | M3: =INDEX('Worker Sheet for Enrollment Pro'!B45:I45, 1,MATCH('Course Salary&Enrollment'!B7,'Worker Sheet for Enrollment Pro'!B2:I2,0)) -> 10 | N3: =SUM(B3:M3) -> 120
A4: ='School YR 1'!A4 -> Expected CNA Student Body (Course 2) | B4: =IF('Course Salary&Enrollment'!E4+'Course Salary&Enrollment'!E5+'Course Salary&Enrollment'!E6 >0, INDEX('Worker Sheet for Enrollment Pro'!B34:I34, 1,MATCH('Course Salary&Enrollment'!E7,'Worker Sheet for Enrollment Pro'!B2:I2,0)),0) -> 0 | C4: =IF('Course Salary&Enrollment'!E4+'Course Salary&Enrollment'!E5+'Course Salary&Enrollment'!E6 >0, INDEX('Worker Sheet for Enrollment Pro'!B35:I35, 1,MATCH('Course Salary&Enrollment'!E7,'Worker Sheet for Enrollment Pro'!B2:I2,0)),0) -> 0 | D4: =IF('Course Salary&Enrollment'!E4+'Course Salary&Enrollment'!E5+'Course Salary&Enrollment'!E6 >0, INDEX('Worker Sheet for Enrollment Pro'!B36:I36, 1,MATCH('Course Salary&Enrollment'!E7,'Worker Sheet for Enrollment Pro'!B2:I2,0)),0) -> 0 | E4: =IF('Course Salary&Enrollment'!E4+'Course Salary&Enrollment'!E5+'Course Salary&Enrollment'!E6 >0, INDEX('Worker Sheet for Enrollment Pro'!B37:I237, 1,MATCH('Course Salary&Enrollment'!E7,'Worker Sheet for Enrollment Pro'!B2:I2,0)),0) -> 0 | F4: =IF('Course Salary&Enrollment'!E4+'Course Salary&Enrollment'!E5+'Course Salary&Enrollment'!E6 >0, INDEX('Worker Sheet for Enrollment Pro'!B38:I38, 1,MATCH('Course Salary&Enrollment'!E7,'Worker Sheet for Enrollment Pro'!B2:I2,0)),0) -> 0 | G4: =IF('Course Salary&Enrollment'!E4+'Course Salary&Enrollment'!E5+'Course Salary&Enrollment'!E6 >0, INDEX('Worker Sheet for Enrollment Pro'!B39:I39, 1,MATCH('Course Salary&Enrollment'!E7,'Worker Sheet for Enrollment Pro'!B2:I2,0)),0) -> 0 | H4: =IF('Course Salary&Enrollment'!E4+'Course Salary&Enrollment'!E5+'Course Salary&Enrollment'!E6 >0, INDEX('Worker Sheet for Enrollment Pro'!B40:I40, 1,MATCH('Course Salary&Enrollment'!E7,'Worker Sheet for Enrollment Pro'!B2:I2,0)),0) -> 0 | I4: =IF('Course Salary&Enrollment'!E4+'Course Salary&Enrollment'!E5+'Course Salary&Enrollment'!E6 >0, INDEX('Worker Sheet for Enrollment Pro'!B41:I41, 1,MATCH('Course Salary&Enrollment'!E7,'Worker Sheet for Enrollment Pro'!B2:I2,0)),0) -> 0 | J4: =IF('Course Salary&Enrollment'!E4+'Course Salary&Enrollment'!E5+'Course Salary&Enrollment'!E6 >0, INDEX('Worker Sheet for Enrollment Pro'!B42:I42, 1,MATCH('Course Salary&Enrollment'!E7,'Worker Sheet for Enrollment Pro'!B2:I2,0)),0) -> 0 | K4: =IF('Course Salary&Enrollment'!E4+'Course Salary&Enrollment'!E5+'Course Salary&Enrollment'!E6 >0, INDEX('Worker Sheet for Enrollment Pro'!B43:I43, 1,MATCH('Course Salary&Enrollment'!E7,'Worker Sheet for Enrollment Pro'!B2:I2,0)),0) -> 0 | L4: =IF('Course Salary&Enrollment'!E4+'Course Salary&Enrollment'!E5+'Course Salary&Enrollment'!E6 >0, INDEX('Worker Sheet for Enrollment Pro'!B44:I44, 1,MATCH('Course Salary&Enrollment'!E7,'Worker Sheet for Enrollment Pro'!B2:I2,0)),0) -> 0 | M4: =IF('Course Salary&Enrollment'!E4+'Course Salary&Enrollment'!E5+'Course Salary&Enrollment'!E6 >0, INDEX('Worker Sheet for Enrollment Pro'!B30:I30, 1,MATCH('Course Salary&Enrollment'!E7,'Worker Sheet for Enrollment Pro'!B2:I2,0)),0) -> 0 | N4: =SUM(B4:M4) -> 0
A5: ='School YR 1'!A5 -> Expected CNA Student Body (Course 3) | B5: =IF('Course Salary&Enrollment'!H4+'Course Salary&Enrollment'!H5+'Course Salary&Enrollment'!H6 >0, INDEX('Worker Sheet for Enrollment Pro'!B34:I34, 1,MATCH('Course Salary&Enrollment'!H7,'Worker Sheet for Enrollment Pro'!B2:I2,0)),0) -> 0 | C5: =IF('Course Salary&Enrollment'!H4+'Course Salary&Enrollment'!H5+'Course Salary&Enrollment'!H6 >0, INDEX('Worker Sheet for Enrollment Pro'!B35:I35, 1,MATCH('Course Salary&Enrollment'!H7,'Worker Sheet for Enrollment Pro'!B2:I2,0)),0) -> 0 | D5: =IF('Course Salary&Enrollment'!H4+'Course Salary&Enrollment'!H5+'Course Salary&Enrollment'!H6 >0, INDEX('Worker Sheet for Enrollment Pro'!B36:I36, 1,MATCH('Course Salary&Enrollment'!H7,'Worker Sheet for Enrollment Pro'!B2:I2,0)),0) -> 0 | E5: =IF('Course Salary&Enrollment'!H4+'Course Salary&Enrollment'!H5+'Course Salary&Enrollment'!H6 >0, INDEX('Worker Sheet for Enrollment Pro'!B37:I37, 1,MATCH('Course Salary&Enrollment'!H7,'Worker Sheet for Enrollment Pro'!B2:I2,0)),0) -> 0 | F5: =IF('Course Salary&Enrollment'!H4+'Course Salary&Enrollment'!H5+'Course Salary&Enrollment'!H6 >0, INDEX('Worker Sheet for Enrollment Pro'!B38:I38, 1,MATCH('Course Salary&Enrollment'!H7,'Worker Sheet for Enrollment Pro'!B2:I2,0)),0) -> 0 | G5: =IF('Course Salary&Enrollment'!H4+'Course Salary&Enrollment'!H5+'Course Salary&Enrollment'!H6 >0, INDEX('Worker Sheet for Enrollment Pro'!B39:I39, 1,MATCH('Course Salary&Enrollment'!H7,'Worker Sheet for Enrollment Pro'!B2:I2,0)),0) -> 0 | H5: =IF('Course Salary&Enrollment'!H4+'Course Salary&Enrollment'!H5+'Course Salary&Enrollment'!H6 >0, INDEX('Worker Sheet for Enrollment Pro'!B40:I40, 1,MATCH('Course Salary&Enrollment'!H7,'Worker Sheet for Enrollment Pro'!B2:I2,0)),0) -> 0 | I5: =IF('Course Salary&Enrollment'!H4+'Course Salary&Enrollment'!H5+'Course Salary&Enrollment'!H6 >0, INDEX('Worker Sheet for Enrollment Pro'!B41:I41, 1,MATCH('Course Salary&Enrollment'!H7,'Worker Sheet for Enrollment Pro'!B2:I2,0)),0) -> 0 | J5: =IF('Course Salary&Enrollment'!H4+'Course Salary&Enrollment'!H5+'Course Salary&Enrollment'!H6 >0, INDEX('Worker Sheet for Enrollment Pro'!B42:I42, 1,MATCH('Course Salary&Enrollment'!H7,'Worker Sheet for Enrollment Pro'!B2:I2,0)),0) -> 0 | K5: =IF('Course Salary&Enrollment'!H4+'Course Salary&Enrollment'!H5+'Course Salary&Enrollment'!H6 >0, INDEX('Worker Sheet for Enrollment Pro'!B43:I43, 1,MATCH('Course Salary&Enrollment'!H7,'Worker Sheet for Enrollment Pro'!B2:I2,0)),0) -> 0 | L5: =IF('Course Salary&Enrollment'!H4+'Course Salary&Enrollment'!H5+'Course Salary&Enrollment'!H6 >0, INDEX('Worker Sheet for Enrollment Pro'!B44:I44, 1,MATCH('Course Salary&Enrollment'!H7,'Worker Sheet for Enrollment Pro'!B2:I2,0)),0) -> 0 | M5: =IF('Course Salary&Enrollment'!H4+'Course Salary&Enrollment'!H5+'Course Salary&Enrollment'!H6 >0, INDEX('Worker Sheet for Enrollment Pro'!B45:I45, 1,MATCH('Course Salary&Enrollment'!H7,'Worker Sheet for Enrollment Pro'!B2:I2,0)),0) -> 0 | N5: 0
A6: Total Student Body | B6: =SUM(B3:B5) -> 10 | C6: =SUM(C3:C5) -> 10 | D6: 10 | E6: 10 | F6: 10 | G6: 10 | H6: 10 | I6: 10 | J6: 10 | K6: 10 | L6: 10 | M6: 10 | N6: 120
A7: CNATuition Fee per Student | B7: 1600 | C7: 1600 | D7: 1600 | E7: 1600 | F7: 1600 | G7: 1600 | H7: 1600 | I7: 1600 | J7: 1600 | K7: 1600 | L7: 1600 | M7: 1600
A8: Registration Fee per Student | B8: 50 | C8: 50 | D8: 50 | E8: 50 | F8: 50 | G8: 50 | H8: 50 | I8: 50 | J8: 50 | K8: 50 | L8: 50 | M8: 50
A9: Total Revenue | B9: =B6*(B7+B8) -> 16500 | C9: =C6*(C7+C8) -> 16500 | D9: 16500 | E9: 16500 | F9: 16500 | G9: 16500 | H9: 16500 | I9: 16500 | J9: 16500 | K9: 16500 | L9: 16500 | M9: 16500 | N9: =SUM(B9:M9) -> 198000
A11: Less Variable Costs | P11: Item Costs (From first year)
A12: Textbook | B12: =P12*($B$6) -> 350 | C12: =P12*($C$6) -> 350 | D12: =P12*($D$6) -> 350 | E12: =P12*($E$6) -> 350 | F12: =P12*($F$6) -> 350 | G12: =P12*($G$6) -> 350 | H12: =P12*($H$6) -> 350 | I12: =P12*($I$6) -> 350 | J12: =P12*($J$6) -> 350 | K12: =P12*($K$6) -> 350 | L12: =P12*($L$6) -> 350 | M12: =P12*($M$6) -> 350 | P12: ='School YR 1'!P12 -> 35
A13: Workbook | B13: =P13*($B$6) -> 180 | C13: =P13*($C$6) -> 180 | D13: =P13*($D$6) -> 180 | E13: =P13*($E$6) -> 180 | F13: =P13*($F$6) -> 180 | G13: =P13*($G$6) -> 180 | H13: =P13*($H$6) -> 180 | I13: =P13*($I$6) -> 180 | J13: =P13*($J$6) -> 180 | K13: =P13*($K$6) -> 180 | L13: =P13*($L$6) -> 180 | M13: =P13*($M$6) -> 180 | P13: ='School YR 1'!P13 -> 18
A14: Uniforms | B14: =P14*($B$6) -> 300 | C14: =P14*($C$6) -> 300 | D14: =P14*($D$6) -> 300 | E14: =P14*($E$6) -> 300 | F14: =P14*($F$6) -> 300 | G14: =P14*($G$6) -> 300 | H14: =P14*($H$6) -> 300 | I14: =P14*($I$6) -> 300 | J14: =P14*($J$6) -> 300 | K14: =P14*($K$6) -> 300 | L14: =P14*($L$6) -> 300 | M14: =P14*($M$6) -> 300 | P14: ='School YR 1'!P14 -> 30
A15: I.D. Badges | B15: 50 | C15: 50 | D15: 50 | E15: 50 | F15: 50 | G15: 50 | H15: 50 | I15: 50 | J15: 50 | K15: 50 | L15: 50 | M15: 50 | P15: ='School YR 1'!P15 -> 5
A16: Blood Pressure Cuff & Stethoscope | B16: 170 | C16: 170 | D16: 170 | E16: 170 | F16: 170 | G16: 170 | H16: 170 | I16: 170 | J16: 170 | K16: 170 | L16: 170 | M16: 170 | P16: ='School YR 1'!P16 -> 17
A17: Second Hand Watch | B17: 50 | C17: 50 | D17: 50 | E17: 50 | F17: 50 | G17: 50 | H17: 50 | I17: 50 | J17: 50 | K17: 50 | L17: 50 | M17: 50 | P17: ='School YR 1'!P17 -> 5
A18: State Competency Examination | B18: 1250 | C18: 1250 | D18: 1250 | E18: 1250 | F18: 1250 | G18: 1250 | H18: 1250 | I18: 1250 | J18: 1250 | K18: 1250 | L18: 1250 | M18: 1250 | P18: ='School YR 1'!P18 -> 125
A19: CPR Certification | B19: =P19*($B$6) -> 650 | C19: =P19*($C$6) -> 650 | D19: =P19*($D$6) -> 650 | E19: =P19*($E$6) -> 650 | F19: =P19*($F$6) -> 650 | G19: =P19*($G$6) -> 650 | H19: =P19*($H$6) -> 650 | I19: =P19*($I$6) -> 650 | J19: =P19*($J$6) -> 650 | K19: =P19*($K$6) -> 650 | L19: =P19*($L$6) -> 650 | M19: =P19*($M$6) -> 650 | P19: ='School YR 1'!P19 -> 65
A20: PPD Test | B20: 100 | C20: 100 | D20: 100 | E20: 100 | F20: 100 | G20: 100 | H20: 100 | I20: 100 | J20: 100 | K20: 100 | L20: 100 | M20: 100 | P20: ='School YR 1'!P20 -> 10
A21: Drug Screening | B21: 500 | C21: 500 | D21: 500 | E21: 500 | F21: 500 | G21: 500 | H21: 500 | I21: 500 | J21: 500 | K21: 500 | L21: 500 | M21: 500 | P21: ='School YR 1'!P21 -> 50
A22: Background Check | B22: 250 | C22: 250 | D22: 250 | E22: 250 | F22: 250 | G22: 250 | H22: 250 | I22: 250 | J22: 250 | K22: 250 | L22: 250 | M22: 250 | P22: ='School YR 1'!P22 -> 25
A23: Pre-Recorded Lecture Licensing Fee | B23: =P23*($B$6) -> 0 | C23: =P23*($C$6) -> 0 | D23: =P23*($D$6) -> 0 | E23: =P23*($E$6) -> 0 | F23: =P23*($F$6) -> 0 | G23: =P23*($G$6) -> 0 | H23: =P23*($H$6) -> 0 | I23: =P23*($I$6) -> 0 | J23: =P23*($J$6) -> 0 | K23: =P23*($K$6) -> 0 | L23: =P23*($L$6) -> 0 | M23: =P23*($M$6) -> 0 | P23: ='School YR 1'!P23 -> 0
A24: Student Attrition Refunds | B24: =IF(B6*0.1>0.5,$P$24*ROUNDUP($B$6*0.1,0),0) -> 0 | C24: =IF(C6*0.1>0.5,$P$24*ROUNDUP($C$6*0.1,0),0) -> 0 | D24: =IF(D6*0.1>0.5,$P$24*ROUNDUP($D$6*0.1,0),0) -> 0 | E24: =IF(E6*0.1>0.5,$P$24*ROUNDUP($E$6*0.1,0),0) -> 0 | F24: =IF(F6*0.1>0.5,$P$24*ROUNDUP($F$6*0.1,0),0) -> 0 | G24: =IF(G6*0.1>0.5,$P$24*ROUNDUP($G$6*0.1,0),0) -> 0 | H24: =IF(H6*0.1>0.5,$P$24*ROUNDUP($H$6*0.1,0),0) -> 0 | I24: =IF(I6*0.1>0.5,$P$24*ROUNDUP($I$6*0.1,0),0) -> 0 | J24: =IF(J6*0.1>0.5,$P$24*ROUNDUP($J$6*0.1,0),0) -> 0 | K24: =IF(K6*0.1>0.5,$P$24*ROUNDUP($K$6*0.1,0),0) -> 0 | L24: =IF(L6*0.1>0.5,$P$24*ROUNDUP($L$6*0.1,0),0) -> 0 | M24: =IF(M6*0.1>0.5,$P$24*ROUNDUP($M$6*0.1,0),0) -> 0 | P24: ='School YR 1'!P24 -> 0
A26: Total Variable Costs | B26: =SUM(B12:B24) -> 3850 | C26: =SUM(C12:C24) -> 3850 | D26: 3850 | E26: 3850 | F26: 3850 | G26: 3850 | H26: 3850 | I26: 3850 | J26: 3850 | K26: 3850 | L26: 3850 | M26: 3850 | N26: =SUM(B26:M26) -> 46200
A28: Less Fixed Costs
A29: Rent | B29: ='School YR 1'!B29 -> 3000 | C29: ='School YR 1'!C29 -> 3000 | D29: ='School YR 1'!D29 -> 3000 | E29: ='School YR 1'!E29 -> 3000 | F29: ='School YR 1'!F29 -> 3000 | G29: ='School YR 1'!G29 -> 3000 | H29: ='School YR 1'!H29 -> 3000 | I29: ='School YR 1'!I29 -> 3000 | J29: ='School YR 1'!J29 -> 3000 | K29: ='School YR 1'!K29 -> 3000 | L29: ='School YR 1'!L29 -> 3000 | M29: ='School YR 1'!M29 -> 3000
A30: Utilities | B30: ='School YR 1'!B30 -> 350 | C30: ='School YR 1'!C30 -> 350 | D30: ='School YR 1'!D30 -> 350 | E30: ='School YR 1'!E30 -> 350 | F30: ='School YR 1'!F30 -> 350 | G30: ='School YR 1'!G30 -> 350 | H30: ='School YR 1'!H30 -> 350 | I30: ='School YR 1'!I30 -> 350 | J30: ='School YR 1'!J30 -> 350 | K30: ='School YR 1'!K30 -> 350 | L30: ='School YR 1'!L30 -> 350 | M30: ='School YR 1'!M30 -> 350
A31: Professional Liability Insurance | B31: ='School YR 1'!B31 -> 125 | C31: ='School YR 1'!C31 -> 125 | D31: ='School YR 1'!D31 -> 125 | E31: ='School YR 1'!E31 -> 125 | F31: ='School YR 1'!F31 -> 125 | G31: ='School YR 1'!G31 -> 125 | H31: ='School YR 1'!H31 -> 125 | I31: ='School YR 1'!I31 -> 125 | J31: ='School YR 1'!J31 -> 125 | K31: ='School YR 1'!K31 -> 125 | L31: ='School YR 1'!L31 -> 125 | M31: ='School YR 1'!M31 -> 125
A32: Student Insurance/Bond | B32: ='School YR 1'!B32 -> 25 | C32: ='School YR 1'!C32 -> 25 | D32: ='School YR 1'!D32 -> 25 | E32: ='School YR 1'!E32 -> 25 | F32: ='School YR 1'!F32 -> 25 | G32: ='School YR 1'!G32 -> 25 | H32: ='School YR 1'!H32 -> 25 | I32: ='School YR 1'!I32 -> 25 | J32: ='School YR 1'!J32 -> 25 | K32: ='School YR 1'!K32 -> 25 | L32: ='School YR 1'!L32 -> 25 | M32: ='School YR 1'!M32 -> 25
A33: Lab Supplies | B33: ='School YR 1'!B33 -> 100 | C33: ='School YR 1'!C33 -> 100 | D33: ='School YR 1'!D33 -> 100 | E33: ='School YR 1'!E33 -> 100 | F33: ='School YR 1'!F33 -> 100 | G33: ='School YR 1'!G33 -> 100 | H33: ='School YR 1'!H33 -> 100 | I33: ='School YR 1'!I33 -> 100 | J33: ='School YR 1'!J33 -> 100 | K33: ='School YR 1'!K33 -> 100 | L33: ='School YR 1'!L33 -> 100 | M33: ='School YR 1'!M33 -> 100
A34: Marketing | B34: ='School YR 1'!B34 -> 1000 | C34: ='School YR 1'!C34 -> 1000 | D34: ='School YR 1'!D34 -> 1000 | E34: ='School YR 1'!E34 -> 1000 | F34: ='School YR 1'!F34 -> 1000 | G34: ='School YR 1'!G34 -> 1000 | H34: ='School YR 1'!H34 -> 1000 | I34: ='School YR 1'!I34 -> 1000 | J34: ='School YR 1'!J34 -> 1000 | K34: ='School YR 1'!K34 -> 1000 | L34: ='School YR 1'!L34 -> 1000 | M34: ='School YR 1'!M34 -> 1000
A35: School Administrator (Owner) Salary | B35: ='School YR 1'!B35 -> 0 | C35: ='School YR 1'!C35 -> 0 | D35: ='School YR 1'!D35 -> 0 | E35: ='School YR 1'!E35 -> 0 | F35: ='School YR 1'!F35 -> 0 | G35: ='School YR 1'!G35 -> 0 | H35: ='School YR 1'!H35 -> 0 | I35: ='School YR 1'!I35 -> 0 | J35: ='School YR 1'!J35 -> 0 | K35: ='School YR 1'!K35 -> 0 | L35: ='School YR 1'!L35 -> 0 | M35: ='School YR 1'!M35 -> 0
A36: Program Coordinator Salary | B36: ='School YR 1'!B36 -> 4000 | C36: ='School YR 1'!C36 -> 4000 | D36: ='School YR 1'!D36 -> 4000 | E36: ='School YR 1'!E36 -> 4000 | F36: ='School YR 1'!F36 -> 4000 | G36: ='School YR 1'!G36 -> 4000 | H36: ='School YR 1'!H36 -> 4000 | I36: ='School YR 1'!I36 -> 4000 | J36: ='School YR 1'!J36 -> 4000 | K36: ='School YR 1'!K36 -> 4000 | L36: ='School YR 1'!L36 -> 4000 | M36: ='School YR 1'!M36 -> 4000
A37: CNA Instructor Salary | B37: ='School YR 1'!B37 -> 2437.5 | C37: ='School YR 1'!C37 -> 2437.5 | D37: ='School YR 1'!D37 -> 2437.5 | E37: ='School YR 1'!E37 -> 2437.5 | F37: ='School YR 1'!F37 -> 2437.5 | G37: ='School YR 1'!G37 -> 2437.5 | H37: ='School YR 1'!H37 -> 2437.5 | I37: ='School YR 1'!I37 -> 2437.5 | J37: ='School YR 1'!J37 -> 2437.5 | K37: ='School YR 1'!K37 -> 2437.5 | L37: ='School YR 1'!L37 -> 2437.5 | M37: ='School YR 1'!M37 -> 2437.5
A38: Secretary Salary | B38: ='School YR 1'!B38 -> 1000 | C38: ='School YR 1'!C38 -> 1000 | D38: ='School YR 1'!D38 -> 1000 | E38: ='School YR 1'!E38 -> 1000 | F38: ='School YR 1'!F38 -> 1000 | G38: ='School YR 1'!G38 -> 1000 | H38: ='School YR 1'!H38 -> 1000 | I38: ='School YR 1'!I38 -> 1000 | J38: ='School YR 1'!J38 -> 1000 | K38: ='School YR 1'!K38 -> 1000 | L38: ='School YR 1'!L38 -> 1000 | M38: ='School YR 1'!M38 -> 1000
A39: Incidentals/Unforseen Costs | B39: ='School YR 1'!B39 -> 100 | C39: ='School YR 1'!C39 -> 100 | D39: ='School YR 1'!D39 -> 100 | E39: ='School YR 1'!E39 -> 100 | F39: ='School YR 1'!F39 -> 100 | G39: ='School YR 1'!G39 -> 100 | H39: ='School YR 1'!H39 -> 100 | I39: ='School YR 1'!I39 -> 100 | J39: ='School YR 1'!J39 -> 100 | K39: ='School YR 1'!K39 -> 100 | L39: ='School YR 1'!L39 -> 100 | M39: ='School YR 1'!M39 -> 100
A40: Total Fixed Costs | B40: =SUM(B29:B39) -> 12137.5 | C40: =SUM(C29:C39) -> 12137.5 | D40: =SUM(D29:D39) -> 12137.5 | E40: 12137.5 | F40: 12137.5 | G40: 12137.5 | H40: 12137.5 | I40: 12137.5 | J40: 12137.5 | K40: 12137.5 | L40: 12137.5 | M40: 12137.5 | N40: =SUM(B40:M40) -> 145650
A42: Total Expenses | B42: =B26+B40 -> 15987.5 | C42: 15987.5 | D42: 15987.5 | E42: 15987.5 | F42: 15987.5 | G42: 15987.5 | H42: 15987.5 | I42: 15987.5 | J42: 15987.5 | K42: 15987.5 | L42: 15987.5 | M42: 15987.5 | N42: =SUM(B42:M42) -> 191850
A44: NET PROFIT BEFORE TAXES | B44: =B9-B42 -> 512.5 | C44: 512.5 | D44: 512.5 | E44: 512.5 | F44: 512.5 | G44: 512.5 | H44: 512.5 | I44: 512.5 | J44: 512.5 | K44: 512.5 | L44: 512.5 | M44: 512.5 | N44: =SUM(B44:M44) -> 6150
